{"text_format":"1","workbook":"xlsx","n_sheets":2,"sheets":["Répartition_postes","salaries_tries"],"not_rendered":{"charts":0,"images":0,"macros":1,"external_links":0,"defined_names":0,"comments":0,"pivot_tables":0},"unopened":[],"bounds":{"document_bytes":16777216,"sheet_cells":100000,"rows_first":2000,"rows_last":500,"rows_between":2000,"halvings":0,"cell_chars":16384,"cell_head_chars":4096},"cells_cut":0,"cells_raw":0,"read":"whole","date_system":"1900"}

{"sheet":"Répartition_postes","index":0,"n_rows":508,"n_cols":17,"rows_kept":508,"cut":false,"hidden":false,"merged":[[1,1,1,6],[12,8,12,9]]}
[]
[null,"La concaténation - Assembler les chaînes de caractères"]
[]
[null,"Civilité","Nom","Prénom","Prénom Nom","Répartition","Ventilation",null,"Poste 1","Poste 2","Poste 3","Poste 4","Poste 5"]
[null,"Mr","Hochon","Paul",{"$f":"D5 & \" \" & C5","v":"Paul Hochon"},{"$f":"IFERROR(INDEX(P:Q,MATCH(ROW(Q1),Q:Q,0),1),\"\")","v":2},{"$f":"F5&COUNTIF($F$4:F4,F5)+1","v":"21"},null,{"$f":"IFERROR(INDEX(E:G,MATCH(1&ROW(I1),G:G,0),1),\"\")","v":"Marie Rouana"},{"$f":"IFERROR(INDEX(E:G,MATCH(2&ROW(I1),G:G,0),1),\"\")","v":"Paul Hochon"},{"$f":"IFERROR(INDEX(E:G,MATCH(3&ROW(I1),G:G,0),1),\"\")","v":"Anne Audine"},{"$f":"IFERROR(INDEX(E:G,MATCH(4&ROW(I1),G:G,0),1),\"\")","v":"Hassan Céhef"},{"$f":"IFERROR(INDEX(E:G,MATCH(5&ROW(I1),G:G,0),1),\"\")","v":"Lucie Sille"},null,{"$f":"RANDBETWEEN(1,5)","v":5},2,{"$f":"IF(COUNTIF($P$4:P4,P5)<6,MAX($Q$4:Q4)+1,\"\")","v":1}]
[null,"Mme","Audine","Anne",{"$f":"D6 & \" \" & C6","v":"Anne Audine"},{"$f":"IFERROR(INDEX(P:Q,MATCH(ROW(Q2),Q:Q,0),1),\"\")","v":3},{"$f":"F6&COUNTIF($F$4:F5,F6)+1","v":"31"},null,{"$f":"IFERROR(INDEX(E:G,MATCH(1&ROW(I2),G:G,0),1),\"\")","v":"Laura Tatouille"},{"$f":"IFERROR(INDEX(E:G,MATCH(2&ROW(I2),G:G,0),1),\"\")","v":"Arlette Hamalibou"},{"$f":"IFERROR(INDEX(E:G,MATCH(3&ROW(I2),G:G,0),1),\"\")","v":"Charline Galls"},{"$f":"IFERROR(INDEX(E:G,MATCH(4&ROW(I2),G:G,0),1),\"\")","v":"Nadège Hénéré"},{"$f":"IFERROR(INDEX(E:G,MATCH(5&ROW(I2),G:G,0),1),\"\")","v":"Sarah Bernard"},null,{"$f":"RANDBETWEEN(1,5)","v":5},3,{"$f":"IF(COUNTIF($P$4:P5,P6)<6,MAX($Q$4:Q5)+1,\"\")","v":2}]
[null,"Mme","Rouana","Marie","Marie Rouana",1,{"$f":"F7&COUNTIF($F$4:F6,F7)+1","v":"11"},null,"John Doeuf","Barrack Houda","Philippe Maurice","Lionel Sansasse","Stéphane Noix",null,3,1,{"$f":"IF(COUNTIF($P$4:P6,P7)<6,MAX($Q$4:Q6)+1,\"\")","v":3}]
[null,"Mme","Hamalibou","Arlette","Arlette Hamalibou",2,{"$f":"F8&COUNTIF($F$4:F7,F8)+1","v":"22"},null,"Gérard Niomme","Jean Bonbeur","Emilie Gature","Nikos Thine","Coralie De MontéCarlo",null,3,2,{"$f":"IF(COUNTIF($P$4:P7,P8)<6,MAX($Q$4:Q7)+1,\"\")","v":4}]
[null,"Mr","Céhef","Hassan","Hassan Céhef",4,{"$f":"F9&COUNTIF($F$4:F8,F9)+1","v":"41"},null,"Camille Honnête","Mégane Hèresse","Maurice Lile","Yohan Solo","Raël Douche",null,5,4,{"$f":"IF(COUNTIF($P$4:P8,P9)<6,MAX($Q$4:Q8)+1,\"\")","v":5}]
[null,"Mme","Galls","Charline","Charline Galls",3,{"$f":"F10&COUNTIF($F$4:F9,F10)+1","v":"32"},null,{"$f":"IFERROR(INDEX(E:G,MATCH(1&ROW(I6),G:G,0),1),\"\")","v":"Jerry Tomette"},{"$f":"IFERROR(INDEX(E:G,MATCH(2&ROW(I6),G:G,0),1),\"\")","v":"Giles Braltar"},{"$f":"IFERROR(INDEX(E:G,MATCH(3&ROW(I6),G:G,0),1),\"\")","v":"Bruno Dagin"},{"$f":"IFERROR(INDEX(E:G,MATCH(4&ROW(I6),G:G,0),1),\"\")","v":"Claire Jet"},{"$f":"IFERROR(INDEX(E:G,MATCH(5&ROW(I6),G:G,0),1),\"\")","v":"Anne Sarbaque"},null,1,3,{"$f":"IF(COUNTIF($P$4:P9,P10)<6,MAX($Q$4:Q9)+1,\"\")","v":6}]
[null,"Mr","Houda","Barrack","Barrack Houda",2,{"$f":"F11&COUNTIF($F$4:F10,F11)+1","v":"23"},null,"",null,"","","",null,1,2,{"$f":"IF(COUNTIF($P$4:P10,P11)<6,MAX($Q$4:Q10)+1,\"\")","v":7}]
[null,"Mme","Tatouille","Laura","Laura Tatouille",1,{"$f":"F12&COUNTIF($F$4:F11,F12)+1","v":"12"},null,"",null,"","","",null,1,1,{"$f":"IF(COUNTIF($P$4:P11,P12)<6,MAX($Q$4:Q11)+1,\"\")","v":8}]
[null,"Mme","Sille","Lucie","Lucie Sille",5,{"$f":"F13&COUNTIF($F$4:F12,F13)+1","v":"51"},null,"Repérer une affectation",null,"","","",null,3,5,{"$f":"IF(COUNTIF($P$4:P12,P13)<6,MAX($Q$4:Q12)+1,\"\")","v":9}]
[null,"Mme","Bernard","Sarah","Sarah Bernard",5,{"$f":"F14&COUNTIF($F$4:F13,F14)+1","v":"52"},null,null,null,"","","",null,4,5,{"$f":"IF(COUNTIF($P$4:P13,P14)<6,MAX($Q$4:Q13)+1,\"\")","v":10}]
[null,"Mr","Maurice","Philippe","Philippe Maurice",3,{"$f":"F15&COUNTIF($F$4:F14,F15)+1","v":"33"},null,"",null,"","","",null,5,3,{"$f":"IF(COUNTIF($P$4:P14,P15)<6,MAX($Q$4:Q14)+1,\"\")","v":11}]
[null,"Mr","Bonbeur","Jean","Jean Bonbeur",2,{"$f":"F16&COUNTIF($F$4:F15,F16)+1","v":"24"},null,"",null,"","","",null,3,2,{"$f":"IF(COUNTIF($P$4:P15,P16)<6,MAX($Q$4:Q15)+1,\"\")","v":12}]
[null,"Mme","Hèresse","Mégane","Mégane Hèresse",2,{"$f":"F17&COUNTIF($F$4:F16,F17)+1","v":"25"},null,"",null,"","","",null,3,2,{"$f":"IF(COUNTIF($P$4:P16,P17)<6,MAX($Q$4:Q16)+1,\"\")","v":13}]
[null,"Mr","Noix","Stéphane","Stéphane Noix",5,{"$f":"F18&COUNTIF($F$4:F17,F18)+1","v":"53"},null,"",null,"","","",null,1,5,{"$f":"IF(COUNTIF($P$4:P17,P18)<6,MAX($Q$4:Q17)+1,\"\")","v":14}]
[null,"Mme","Gature","Emilie","Emilie Gature",3,{"$f":"F19&COUNTIF($F$4:F18,F19)+1","v":"34"},null,"",null,"","","",null,3,3,{"$f":"IF(COUNTIF($P$4:P18,P19)<6,MAX($Q$4:Q18)+1,\"\")","v":15}]
[null,"Mme","De MontéCarlo","Coralie","Coralie De MontéCarlo",5,{"$f":"F20&COUNTIF($F$4:F19,F20)+1","v":"54"},null,"",null,"","","",null,3,5,{"$f":"IF(COUNTIF($P$4:P19,P20)<6,MAX($Q$4:Q19)+1,\"\")","v":16}]
[null,"Mme","Hénéré","Nadège","Nadège Hénéré",4,{"$f":"F21&COUNTIF($F$4:F20,F21)+1","v":"42"},null,"",null,"","","",null,2,4,{"$f":"IF(COUNTIF($P$4:P20,P21)<6,MAX($Q$4:Q20)+1,\"\")","v":17}]
[null,"Mr","Sansasse","Lionel","Lionel Sansasse",4,{"$f":"F22&COUNTIF($F$4:F21,F22)+1","v":"43"},null,"",null,"","","",null,2,4,{"$f":"IF(COUNTIF($P$4:P21,P22)<6,MAX($Q$4:Q21)+1,\"\")","v":18}]
[null,"Mr","Thine","Nikos","Nikos Thine",4,{"$f":"F23&COUNTIF($F$4:F22,F23)+1","v":"44"},null,null,null,null,null,null,null,1,4,{"$f":"IF(COUNTIF($P$4:P22,P23)<6,MAX($Q$4:Q22)+1,\"\")","v":19}]
[null,"Mr","Solo","Yohan","Yohan Solo",4,{"$f":"F24&COUNTIF($F$4:F23,F24)+1","v":"45"},null,null,null,null,null,null,null,4,4,{"$f":"IF(COUNTIF($P$4:P23,P24)<6,MAX($Q$4:Q23)+1,\"\")","v":20}]
[null,"Mme","Jet","Claire","Claire Jet",4,{"$f":"F25&COUNTIF($F$4:F24,F25)+1","v":"46"},null,null,null,null,null,null,null,5,4,{"$f":"IF(COUNTIF($P$4:P24,P25)<6,MAX($Q$4:Q24)+1,\"\")","v":21}]
[null,"Mr","Braltar","Giles","Giles Braltar",2,{"$f":"F26&COUNTIF($F$4:F25,F26)+1","v":"26"},null,null,null,null,null,null,null,1,4,{"$f":"IF(COUNTIF($P$4:P25,P26)<6,MAX($Q$4:Q25)+1,\"\")","v":""}]
[null,"Mr","Douche","Raël","Raël Douche",5,{"$f":"F27&COUNTIF($F$4:F26,F27)+1","v":"55"},null,null,null,null,null,null,null,5,4,{"$f":"IF(COUNTIF($P$4:P26,P27)<6,MAX($Q$4:Q26)+1,\"\")","v":""}]
[null,"Mme","Sarbaque","Anne","Anne Sarbaque",5,{"$f":"F28&COUNTIF($F$4:F27,F28)+1","v":"56"},null,null,null,null,null,null,null,3,2,{"$f":"IF(COUNTIF($P$4:P27,P28)<6,MAX($Q$4:Q27)+1,\"\")","v":22}]
[null,"Mme","Lile","Maurice","Maurice Lile",3,{"$f":"F29&COUNTIF($F$4:F28,F29)+1","v":"35"},null,null,null,null,null,null,null,3,5,{"$f":"IF(COUNTIF($P$4:P28,P29)<6,MAX($Q$4:Q28)+1,\"\")","v":23}]
[null,"Mr","Doeuf","John","John Doeuf",1,{"$f":"F30&COUNTIF($F$4:F29,F30)+1","v":"13"},null,null,null,null,null,null,null,5,4,{"$f":"IF(COUNTIF($P$4:P29,P30)<6,MAX($Q$4:Q29)+1,\"\")","v":""}]
[null,"Mr","Niomme","Gérard","Gérard Niomme",1,{"$f":"F31&COUNTIF($F$4:F30,F31)+1","v":"14"},null,null,null,null,null,null,null,3,5,{"$f":"IF(COUNTIF($P$4:P30,P31)<6,MAX($Q$4:Q30)+1,\"\")","v":24}]
[null,"Mme","Honnête","Camille","Camille Honnête",1,{"$f":"F32&COUNTIF($F$4:F31,F32)+1","v":"15"},null,null,null,null,null,null,null,5,2,{"$f":"IF(COUNTIF($P$4:P31,P32)<6,MAX($Q$4:Q31)+1,\"\")","v":""}]
[null,"Mr","Tomette","Jerry","Jerry Tomette",1,{"$f":"F33&COUNTIF($F$4:F32,F33)+1","v":"16"},null,null,null,null,null,null,null,2,2,{"$f":"IF(COUNTIF($P$4:P32,P33)<6,MAX($Q$4:Q32)+1,\"\")","v":""}]
[null,"Mr","Dagin","Bruno","Bruno Dagin",3,{"$f":"F34&COUNTIF($F$4:F33,F34)+1","v":"36"},null,null,null,null,null,null,null,2,2,{"$f":"IF(COUNTIF($P$4:P33,P34)<6,MAX($Q$4:Q33)+1,\"\")","v":""}]
[null,null,null,null,null,null,null,null,null,null,null,null,null,null,1,3,{"$f":"IF(COUNTIF($P$4:P34,P35)<6,MAX($Q$4:Q34)+1,\"\")","v":25}]
[null,null,null,null,null,null,null,null,null,null,null,null,null,null,5,1,{"$f":"IF(COUNTIF($P$4:P35,P36)<6,MAX($Q$4:Q35)+1,\"\")","v":26}]
[null,null,null,null,null,null,null,null,null,null,null,null,null,null,4,1,{"$f":"IF(COUNTIF($P$4:P36,P37)<6,MAX($Q$4:Q36)+1,\"\")","v":27}]
[null,null,null,null,null,null,null,null,null,null,null,null,null,null,2,1,{"$f":"IF(COUNTIF($P$4:P37,P38)<6,MAX($Q$4:Q37)+1,\"\")","v":28}]
[null,null,null,null,null,null,null,null,null,null,null,null,null,null,2,4,{"$f":"IF(COUNTIF($P$4:P38,P39)<6,MAX($Q$4:Q38)+1,\"\")","v":""}]
[null,null,null,null,null,null,null,null,null,null,null,null,null,null,5,2,{"$f":"IF(COUNTIF($P$4:P39,P40)<6,MAX($Q$4:Q39)+1,\"\")","v":""}]
[null,null,null,null,null,null,null,null,null,null,null,null,null,null,3,5,{"$f":"IF(COUNTIF($P$4:P40,P41)<6,MAX($Q$4:Q40)+1,\"\")","v":""}]
[null,null,null,null,null,null,null,null,null,null,null,null,null,null,2,2,{"$f":"IF(COUNTIF($P$4:P41,P42)<6,MAX($Q$4:Q41)+1,\"\")","v":""}]
[null,null,null,null,null,null,null,null,null,null,null,null,null,null,3,4,{"$f":"IF(COUNTIF($P$4:P42,P43)<6,MAX($Q$4:Q42)+1,\"\")","v":""}]
[null,null,null,null,null,null,null,null,null,null,null,null,null,null,5,1,{"$f":"IF(COUNTIF($P$4:P43,P44)<6,MAX($Q$4:Q43)+1,\"\")","v":29}]
[null,null,null,null,null,null,null,null,null,null,null,null,null,null,1,3,{"$f":"IF(COUNTIF($P$4:P44,P45)<6,MAX($Q$4:Q44)+1,\"\")","v":30}]
[null,null,null,null,null,null,null,null,null,null,null,null,null,null,4,2,{"$f":"IF(COUNTIF($P$4:P45,P46)<6,MAX($Q$4:Q45)+1,\"\")","v":""}]
[null,null,null,null,null,null,null,null,null,null,null,null,null,null,5,1,{"$f":"IF(COUNTIF($P$4:P46,P47)<6,MAX($Q$4:Q46)+1,\"\")","v":""}]
[null,null,null,null,null,null,null,null,null,null,null,null,null,null,3,5,{"$f":"IF(COUNTIF($P$4:P47,P48)<6,MAX($Q$4:Q47)+1,\"\")","v":""}]
[null,null,null,null,null,null,null,null,null,null,null,null,null,null,2,4,{"$f":"IF(COUNTIF($P$4:P48,P49)<6,MAX($Q$4:Q48)+1,\"\")","v":""}]
[null,null,null,null,null,null,null,null,null,null,null,null,null,null,1,2,{"$f":"IF(COUNTIF($P$4:P49,P50)<6,MAX($Q$4:Q49)+1,\"\")","v":""}]
[null,null,null,null,null,null,null,null,null,null,null,null,null,null,2,3,{"$f":"IF(COUNTIF($P$4:P50,P51)<6,MAX($Q$4:Q50)+1,\"\")","v":""}]
[null,null,null,null,null,null,null,null,null,null,null,null,null,null,2,4,{"$f":"IF(COUNTIF($P$4:P51,P52)<6,MAX($Q$4:Q51)+1,\"\")","v":""}]
[null,null,null,null,null,null,null,null,null,null,null,null,null,null,1,4,{"$f":"IF(COUNTIF($P$4:P52,P53)<6,MAX($Q$4:Q52)+1,\"\")","v":""}]
[null,null,null,null,null,null,null,null,null,null,null,null,null,null,3,2,{"$f":"IF(COUNTIF($P$4:P53,P54)<6,MAX($Q$4:Q53)+1,\"\")","v":""}]
[null,null,null,null,null,null,null,null,null,null,null,null,null,null,2,4,{"$f":"IF(COUNTIF($P$4:P54,P55)<6,MAX($Q$4:Q54)+1,\"\")","v":""}]
[null,null,null,null,null,null,null,null,null,null,null,null,null,null,4,4,{"$f":"IF(COUNTIF($P$4:P55,P56)<6,MAX($Q$4:Q55)+1,\"\")","v":""}]
[null,null,null,null,null,null,null,null,null,null,null,null,null,null,5,4,{"$f":"IF(COUNTIF($P$4:P56,P57)<6,MAX($Q$4:Q56)+1,\"\")","v":""}]
[null,null,null,null,null,null,null,null,null,null,null,null,null,null,2,4,{"$f":"IF(COUNTIF($P$4:P57,P58)<6,MAX($Q$4:Q57)+1,\"\")","v":""}]
[null,null,null,null,null,null,null,null,null,null,null,null,null,null,4,2,{"$f":"IF(COUNTIF($P$4:P58,P59)<6,MAX($Q$4:Q58)+1,\"\")","v":""}]
[null,null,null,null,null,null,null,null,null,null,null,null,null,null,4,2,{"$f":"IF(COUNTIF($P$4:P59,P60)<6,MAX($Q$4:Q59)+1,\"\")","v":""}]
[null,null,null,null,null,null,null,null,null,null,null,null,null,null,3,3,{"$f":"IF(COUNTIF($P$4:P60,P61)<6,MAX($Q$4:Q60)+1,\"\")","v":""}]
[null,null,null,null,null,null,null,null,null,null,null,null,null,null,2,3,{"$f":"IF(COUNTIF($P$4:P61,P62)<6,MAX($Q$4:Q61)+1,\"\")","v":""}]
[null,null,null,null,null,null,null,null,null,null,null,null,null,null,3,2,{"$f":"IF(COUNTIF($P$4:P62,P63)<6,MAX($Q$4:Q62)+1,\"\")","v":""}]
[null,null,null,null,null,null,null,null,null,null,null,null,null,null,1,4,{"$f":"IF(COUNTIF($P$4:P63,P64)<6,MAX($Q$4:Q63)+1,\"\")","v":""}]
[null,null,null,null,null,null,null,null,null,null,null,null,null,null,2,3,{"$f":"IF(COUNTIF($P$4:P64,P65)<6,MAX($Q$4:Q64)+1,\"\")","v":""}]
[null,null,null,null,null,null,null,null,null,null,null,null,null,null,5,3,{"$f":"IF(COUNTIF($P$4:P65,P66)<6,MAX($Q$4:Q65)+1,\"\")","v":""}]
[null,null,null,null,null,null,null,null,null,null,null,null,null,null,4,5,{"$f":"IF(COUNTIF($P$4:P66,P67)<6,MAX($Q$4:Q66)+1,\"\")","v":""}]
[null,null,null,null,null,null,null,null,null,null,null,null,null,null,4,1,{"$f":"IF(COUNTIF($P$4:P67,P68)<6,MAX($Q$4:Q67)+1,\"\")","v":""}]
[null,null,null,null,null,null,null,null,null,null,null,null,null,null,2,5,{"$f":"IF(COUNTIF($P$4:P68,P69)<6,MAX($Q$4:Q68)+1,\"\")","v":""}]
[null,null,null,null,null,null,null,null,null,null,null,null,null,null,{"$f":"RANDBETWEEN(1,5)","v":2},1,{"$f":"IF(COUNTIF($P$4:P69,P70)<6,MAX($Q$4:Q69)+1,\"\")","v":""}]
[null,null,null,null,null,null,null,null,null,null,null,null,null,null,5,3,{"$f":"IF(COUNTIF($P$4:P70,P71)<6,MAX($Q$4:Q70)+1,\"\")","v":""}]
[null,null,null,null,null,null,null,null,null,null,null,null,null,null,4,3,{"$f":"IF(COUNTIF($P$4:P71,P72)<6,MAX($Q$4:Q71)+1,\"\")","v":""}]
[null,null,null,null,null,null,null,null,null,null,null,null,null,null,5,4,{"$f":"IF(COUNTIF($P$4:P72,P73)<6,MAX($Q$4:Q72)+1,\"\")","v":""}]
[null,null,null,null,null,null,null,null,null,null,null,null,null,null,4,2,{"$f":"IF(COUNTIF($P$4:P73,P74)<6,MAX($Q$4:Q73)+1,\"\")","v":""}]
[null,null,null,null,null,null,null,null,null,null,null,null,null,null,2,1,{"$f":"IF(COUNTIF($P$4:P74,P75)<6,MAX($Q$4:Q74)+1,\"\")","v":""}]
[null,null,null,null,null,null,null,null,null,null,null,null,null,null,2,1,{"$f":"IF(COUNTIF($P$4:P75,P76)<6,MAX($Q$4:Q75)+1,\"\")","v":""}]
[null,null,null,null,null,null,null,null,null,null,null,null,null,null,1,2,{"$f":"IF(COUNTIF($P$4:P76,P77)<6,MAX($Q$4:Q76)+1,\"\")","v":""}]
[null,null,null,null,null,null,null,null,null,null,null,null,null,null,4,5,{"$f":"IF(COUNTIF($P$4:P77,P78)<6,MAX($Q$4:Q77)+1,\"\")","v":""}]
[null,null,null,null,null,null,null,null,null,null,null,null,null,null,2,1,{"$f":"IF(COUNTIF($P$4:P78,P79)<6,MAX($Q$4:Q78)+1,\"\")","v":""}]
[null,null,null,null,null,null,null,null,null,null,null,null,null,null,1,3,{"$f":"IF(COUNTIF($P$4:P79,P80)<6,MAX($Q$4:Q79)+1,\"\")","v":""}]
[null,null,null,null,null,null,null,null,null,null,null,null,null,null,1,2,{"$f":"IF(COUNTIF($P$4:P80,P81)<6,MAX($Q$4:Q80)+1,\"\")","v":""}]
[null,null,null,null,null,null,null,null,null,null,null,null,null,null,2,3,{"$f":"IF(COUNTIF($P$4:P81,P82)<6,MAX($Q$4:Q81)+1,\"\")","v":""}]
[null,null,null,null,null,null,null,null,null,null,null,null,null,null,2,1,{"$f":"IF(COUNTIF($P$4:P82,P83)<6,MAX($Q$4:Q82)+1,\"\")","v":""}]
[null,null,null,null,null,null,null,null,null,null,null,null,null,null,4,3,{"$f":"IF(COUNTIF($P$4:P83,P84)<6,MAX($Q$4:Q83)+1,\"\")","v":""}]
[null,null,null,null,null,null,null,null,null,null,null,null,null,null,2,4,{"$f":"IF(COUNTIF($P$4:P84,P85)<6,MAX($Q$4:Q84)+1,\"\")","v":""}]
[null,null,null,null,null,null,null,null,null,null,null,null,null,null,1,2,{"$f":"IF(COUNTIF($P$4:P85,P86)<6,MAX($Q$4:Q85)+1,\"\")","v":""}]
[null,null,null,null,null,null,null,null,null,null,null,null,null,null,3,3,{"$f":"IF(COUNTIF($P$4:P86,P87)<6,MAX($Q$4:Q86)+1,\"\")","v":""}]
[null,null,null,null,null,null,null,null,null,null,null,null,null,null,4,4,{"$f":"IF(COUNTIF($P$4:P87,P88)<6,MAX($Q$4:Q87)+1,\"\")","v":""}]
[null,null,null,null,null,null,null,null,null,null,null,null,null,null,2,1,{"$f":"IF(COUNTIF($P$4:P88,P89)<6,MAX($Q$4:Q88)+1,\"\")","v":""}]
[null,null,null,null,null,null,null,null,null,null,null,null,null,null,5,1,{"$f":"IF(COUNTIF($P$4:P89,P90)<6,MAX($Q$4:Q89)+1,\"\")","v":""}]
[null,null,null,null,null,null,null,null,null,null,null,null,null,null,5,5,{"$f":"IF(COUNTIF($P$4:P90,P91)<6,MAX($Q$4:Q90)+1,\"\")","v":""}]
[null,null,null,null,null,null,null,null,null,null,null,null,null,null,3,4,{"$f":"IF(COUNTIF($P$4:P91,P92)<6,MAX($Q$4:Q91)+1,\"\")","v":""}]
[null,null,null,null,null,null,null,null,null,null,null,null,null,null,3,2,{"$f":"IF(COUNTIF($P$4:P92,P93)<6,MAX($Q$4:Q92)+1,\"\")","v":""}]
[null,null,null,null,null,null,null,null,null,null,null,null,null,null,2,1,{"$f":"IF(COUNTIF($P$4:P93,P94)<6,MAX($Q$4:Q93)+1,\"\")","v":""}]
[null,null,null,null,null,null,null,null,null,null,null,null,null,null,1,1,{"$f":"IF(COUNTIF($P$4:P94,P95)<6,MAX($Q$4:Q94)+1,\"\")","v":""}]
[null,null,null,null,null,null,null,null,null,null,null,null,null,null,5,3,{"$f":"IF(COUNTIF($P$4:P95,P96)<6,MAX($Q$4:Q95)+1,\"\")","v":""}]
[null,null,null,null,null,null,null,null,null,null,null,null,null,null,4,5,{"$f":"IF(COUNTIF($P$4:P96,P97)<6,MAX($Q$4:Q96)+1,\"\")","v":""}]
[null,null,null,null,null,null,null,null,null,null,null,null,null,null,2,4,{"$f":"IF(COUNTIF($P$4:P97,P98)<6,MAX($Q$4:Q97)+1,\"\")","v":""}]
[null,null,null,null,null,null,null,null,null,null,null,null,null,null,3,5,{"$f":"IF(COUNTIF($P$4:P98,P99)<6,MAX($Q$4:Q98)+1,\"\")","v":""}]
[null,null,null,null,null,null,null,null,null,null,null,null,null,null,4,1,{"$f":"IF(COUNTIF($P$4:P99,P100)<6,MAX($Q$4:Q99)+1,\"\")","v":""}]
[null,null,null,null,null,null,null,null,null,null,null,null,null,null,4,5,{"$f":"IF(COUNTIF($P$4:P100,P101)<6,MAX($Q$4:Q100)+1,\"\")","v":""}]
[null,null,null,null,null,null,null,null,null,null,null,null,null,null,5,4,{"$f":"IF(COUNTIF($P$4:P101,P102)<6,MAX($Q$4:Q101)+1,\"\")","v":""}]
[null,null,null,null,null,null,null,null,null,null,null,null,null,null,5,2,{"$f":"IF(COUNTIF($P$4:P102,P103)<6,MAX($Q$4:Q102)+1,\"\")","v":""}]
[null,null,null,null,null,null,null,null,null,null,null,null,null,null,3,5,{"$f":"IF(COUNTIF($P$4:P103,P104)<6,MAX($Q$4:Q103)+1,\"\")","v":""}]
[null,null,null,null,null,null,null,null,null,null,null,null,null,null,2,2,{"$f":"IF(COUNTIF($P$4:P104,P105)<6,MAX($Q$4:Q104)+1,\"\")","v":""}]
[null,null,null,null,null,null,null,null,null,null,null,null,null,null,2,1,{"$f":"IF(COUNTIF($P$4:P105,P106)<6,MAX($Q$4:Q105)+1,\"\")","v":""}]
[null,null,null,null,null,null,null,null,null,null,null,null,null,null,5,2,{"$f":"IF(COUNTIF($P$4:P106,P107)<6,MAX($Q$4:Q106)+1,\"\")","v":""}]
[null,null,null,null,null,null,null,null,null,null,null,null,null,null,5,2,{"$f":"IF(COUNTIF($P$4:P107,P108)<6,MAX($Q$4:Q107)+1,\"\")","v":""}]
[null,null,null,null,null,null,null,null,null,null,null,null,null,null,5,2,{"$f":"IF(COUNTIF($P$4:P108,P109)<6,MAX($Q$4:Q108)+1,\"\")","v":""}]
[null,null,null,null,null,null,null,null,null,null,null,null,null,null,4,1,{"$f":"IF(COUNTIF($P$4:P109,P110)<6,MAX($Q$4:Q109)+1,\"\")","v":""}]
[null,null,null,null,null,null,null,null,null,null,null,null,null,null,1,3,{"$f":"IF(COUNTIF($P$4:P110,P111)<6,MAX($Q$4:Q110)+1,\"\")","v":""}]
[null,null,null,null,null,null,null,null,null,null,null,null,null,null,3,1,{"$f":"IF(COUNTIF($P$4:P111,P112)<6,MAX($Q$4:Q111)+1,\"\")","v":""}]
[null,null,null,null,null,null,null,null,null,null,null,null,null,null,3,4,{"$f":"IF(COUNTIF($P$4:P112,P113)<6,MAX($Q$4:Q112)+1,\"\")","v":""}]
[null,null,null,null,null,null,null,null,null,null,null,null,null,null,3,1,{"$f":"IF(COUNTIF($P$4:P113,P114)<6,MAX($Q$4:Q113)+1,\"\")","v":""}]
[null,null,null,null,null,null,null,null,null,null,null,null,null,null,4,3,{"$f":"IF(COUNTIF($P$4:P114,P115)<6,MAX($Q$4:Q114)+1,\"\")","v":""}]
[null,null,null,null,null,null,null,null,null,null,null,null,null,null,4,3,{"$f":"IF(COUNTIF($P$4:P115,P116)<6,MAX($Q$4:Q115)+1,\"\")","v":""}]
[null,null,null,null,null,null,null,null,null,null,null,null,null,null,2,1,{"$f":"IF(COUNTIF($P$4:P116,P117)<6,MAX($Q$4:Q116)+1,\"\")","v":""}]
[null,null,null,null,null,null,null,null,null,null,null,null,null,null,2,1,{"$f":"IF(COUNTIF($P$4:P117,P118)<6,MAX($Q$4:Q117)+1,\"\")","v":""}]
[null,null,null,null,null,null,null,null,null,null,null,null,null,null,2,4,{"$f":"IF(COUNTIF($P$4:P118,P119)<6,MAX($Q$4:Q118)+1,\"\")","v":""}]
[null,null,null,null,null,null,null,null,null,null,null,null,null,null,3,3,{"$f":"IF(COUNTIF($P$4:P119,P120)<6,MAX($Q$4:Q119)+1,\"\")","v":""}]
[null,null,null,null,null,null,null,null,null,null,null,null,null,null,4,3,{"$f":"IF(COUNTIF($P$4:P120,P121)<6,MAX($Q$4:Q120)+1,\"\")","v":""}]
[null,null,null,null,null,null,null,null,null,null,null,null,null,null,4,1,{"$f":"IF(COUNTIF($P$4:P121,P122)<6,MAX($Q$4:Q121)+1,\"\")","v":""}]
[null,null,null,null,null,null,null,null,null,null,null,null,null,null,2,2,{"$f":"IF(COUNTIF($P$4:P122,P123)<6,MAX($Q$4:Q122)+1,\"\")","v":""}]
[null,null,null,null,null,null,null,null,null,null,null,null,null,null,2,5,{"$f":"IF(COUNTIF($P$4:P123,P124)<6,MAX($Q$4:Q123)+1,\"\")","v":""}]
[null,null,null,null,null,null,null,null,null,null,null,null,null,null,2,1,{"$f":"IF(COUNTIF($P$4:P124,P125)<6,MAX($Q$4:Q124)+1,\"\")","v":""}]
[null,null,null,null,null,null,null,null,null,null,null,null,null,null,4,4,{"$f":"IF(COUNTIF($P$4:P125,P126)<6,MAX($Q$4:Q125)+1,\"\")","v":""}]
[null,null,null,null,null,null,null,null,null,null,null,null,null,null,1,5,{"$f":"IF(COUNTIF($P$4:P126,P127)<6,MAX($Q$4:Q126)+1,\"\")","v":""}]
[null,null,null,null,null,null,null,null,null,null,null,null,null,null,4,1,{"$f":"IF(COUNTIF($P$4:P127,P128)<6,MAX($Q$4:Q127)+1,\"\")","v":""}]
[null,null,null,null,null,null,null,null,null,null,null,null,null,null,1,5,{"$f":"IF(COUNTIF($P$4:P128,P129)<6,MAX($Q$4:Q128)+1,\"\")","v":""}]
[null,null,null,null,null,null,null,null,null,null,null,null,null,null,5,5,{"$f":"IF(COUNTIF($P$4:P129,P130)<6,MAX($Q$4:Q129)+1,\"\")","v":""}]
[null,null,null,null,null,null,null,null,null,null,null,null,null,null,1,2,{"$f":"IF(COUNTIF($P$4:P130,P131)<6,MAX($Q$4:Q130)+1,\"\")","v":""}]
[null,null,null,null,null,null,null,null,null,null,null,null,null,null,3,3,{"$f":"IF(COUNTIF($P$4:P131,P132)<6,MAX($Q$4:Q131)+1,\"\")","v":""}]
[null,null,null,null,null,null,null,null,null,null,null,null,null,null,3,1,{"$f":"IF(COUNTIF($P$4:P132,P133)<6,MAX($Q$4:Q132)+1,\"\")","v":""}]
[null,null,null,null,null,null,null,null,null,null,null,null,null,null,{"$f":"RANDBETWEEN(1,5)","v":3},2,{"$f":"IF(COUNTIF($P$4:P133,P134)<6,MAX($Q$4:Q133)+1,\"\")","v":""}]
[null,null,null,null,null,null,null,null,null,null,null,null,null,null,2,5,{"$f":"IF(COUNTIF($P$4:P134,P135)<6,MAX($Q$4:Q134)+1,\"\")","v":""}]
[null,null,null,null,null,null,null,null,null,null,null,null,null,null,3,2,{"$f":"IF(COUNTIF($P$4:P135,P136)<6,MAX($Q$4:Q135)+1,\"\")","v":""}]
[null,null,null,null,null,null,null,null,null,null,null,null,null,null,1,5,{"$f":"IF(COUNTIF($P$4:P136,P137)<6,MAX($Q$4:Q136)+1,\"\")","v":""}]
[null,null,null,null,null,null,null,null,null,null,null,null,null,null,4,5,{"$f":"IF(COUNTIF($P$4:P137,P138)<6,MAX($Q$4:Q137)+1,\"\")","v":""}]
[null,null,null,null,null,null,null,null,null,null,null,null,null,null,1,1,{"$f":"IF(COUNTIF($P$4:P138,P139)<6,MAX($Q$4:Q138)+1,\"\")","v":""}]
[null,null,null,null,null,null,null,null,null,null,null,null,null,null,5,1,{"$f":"IF(COUNTIF($P$4:P139,P140)<6,MAX($Q$4:Q139)+1,\"\")","v":""}]
[null,null,null,null,null,null,null,null,null,null,null,null,null,null,1,4,{"$f":"IF(COUNTIF($P$4:P140,P141)<6,MAX($Q$4:Q140)+1,\"\")","v":""}]
[null,null,null,null,null,null,null,null,null,null,null,null,null,null,4,4,{"$f":"IF(COUNTIF($P$4:P141,P142)<6,MAX($Q$4:Q141)+1,\"\")","v":""}]
[null,null,null,null,null,null,null,null,null,null,null,null,null,null,4,2,{"$f":"IF(COUNTIF($P$4:P142,P143)<6,MAX($Q$4:Q142)+1,\"\")","v":""}]
[null,null,null,null,null,null,null,null,null,null,null,null,null,null,1,4,{"$f":"IF(COUNTIF($P$4:P143,P144)<6,MAX($Q$4:Q143)+1,\"\")","v":""}]
[null,null,null,null,null,null,null,null,null,null,null,null,null,null,5,4,{"$f":"IF(COUNTIF($P$4:P144,P145)<6,MAX($Q$4:Q144)+1,\"\")","v":""}]
[null,null,null,null,null,null,null,null,null,null,null,null,null,null,1,4,{"$f":"IF(COUNTIF($P$4:P145,P146)<6,MAX($Q$4:Q145)+1,\"\")","v":""}]
[null,null,null,null,null,null,null,null,null,null,null,null,null,null,4,2,{"$f":"IF(COUNTIF($P$4:P146,P147)<6,MAX($Q$4:Q146)+1,\"\")","v":""}]
[null,null,null,null,null,null,null,null,null,null,null,null,null,null,4,1,{"$f":"IF(COUNTIF($P$4:P147,P148)<6,MAX($Q$4:Q147)+1,\"\")","v":""}]
[null,null,null,null,null,null,null,null,null,null,null,null,null,null,5,5,{"$f":"IF(COUNTIF($P$4:P148,P149)<6,MAX($Q$4:Q148)+1,\"\")","v":""}]
[null,null,null,null,null,null,null,null,null,null,null,null,null,null,5,3,{"$f":"IF(COUNTIF($P$4:P149,P150)<6,MAX($Q$4:Q149)+1,\"\")","v":""}]
[null,null,null,null,null,null,null,null,null,null,null,null,null,null,1,1,{"$f":"IF(COUNTIF($P$4:P150,P151)<6,MAX($Q$4:Q150)+1,\"\")","v":""}]
[null,null,null,null,null,null,null,null,null,null,null,null,null,null,3,4,{"$f":"IF(COUNTIF($P$4:P151,P152)<6,MAX($Q$4:Q151)+1,\"\")","v":""}]
[null,null,null,null,null,null,null,null,null,null,null,null,null,null,2,5,{"$f":"IF(COUNTIF($P$4:P152,P153)<6,MAX($Q$4:Q152)+1,\"\")","v":""}]
[null,null,null,null,null,null,null,null,null,null,null,null,null,null,3,4,{"$f":"IF(COUNTIF($P$4:P153,P154)<6,MAX($Q$4:Q153)+1,\"\")","v":""}]
[null,null,null,null,null,null,null,null,null,null,null,null,null,null,1,2,{"$f":"IF(COUNTIF($P$4:P154,P155)<6,MAX($Q$4:Q154)+1,\"\")","v":""}]
[null,null,null,null,null,null,null,null,null,null,null,null,null,null,2,2,{"$f":"IF(COUNTIF($P$4:P155,P156)<6,MAX($Q$4:Q155)+1,\"\")","v":""}]
[null,null,null,null,null,null,null,null,null,null,null,null,null,null,2,1,{"$f":"IF(COUNTIF($P$4:P156,P157)<6,MAX($Q$4:Q156)+1,\"\")","v":""}]
[null,null,null,null,null,null,null,null,null,null,null,null,null,null,5,4,{"$f":"IF(COUNTIF($P$4:P157,P158)<6,MAX($Q$4:Q157)+1,\"\")","v":""}]
[null,null,null,null,null,null,null,null,null,null,null,null,null,null,1,3,{"$f":"IF(COUNTIF($P$4:P158,P159)<6,MAX($Q$4:Q158)+1,\"\")","v":""}]
[null,null,null,null,null,null,null,null,null,null,null,null,null,null,2,4,{"$f":"IF(COUNTIF($P$4:P159,P160)<6,MAX($Q$4:Q159)+1,\"\")","v":""}]
[null,null,null,null,null,null,null,null,null,null,null,null,null,null,5,5,{"$f":"IF(COUNTIF($P$4:P160,P161)<6,MAX($Q$4:Q160)+1,\"\")","v":""}]
[null,null,null,null,null,null,null,null,null,null,null,null,null,null,1,1,{"$f":"IF(COUNTIF($P$4:P161,P162)<6,MAX($Q$4:Q161)+1,\"\")","v":""}]
[null,null,null,null,null,null,null,null,null,null,null,null,null,null,2,2,{"$f":"IF(COUNTIF($P$4:P162,P163)<6,MAX($Q$4:Q162)+1,\"\")","v":""}]
[null,null,null,null,null,null,null,null,null,null,null,null,null,null,2,3,{"$f":"IF(COUNTIF($P$4:P163,P164)<6,MAX($Q$4:Q163)+1,\"\")","v":""}]
[null,null,null,null,null,null,null,null,null,null,null,null,null,null,5,2,{"$f":"IF(COUNTIF($P$4:P164,P165)<6,MAX($Q$4:Q164)+1,\"\")","v":""}]
[null,null,null,null,null,null,null,null,null,null,null,null,null,null,2,5,{"$f":"IF(COUNTIF($P$4:P165,P166)<6,MAX($Q$4:Q165)+1,\"\")","v":""}]
[null,null,null,null,null,null,null,null,null,null,null,null,null,null,1,2,{"$f":"IF(COUNTIF($P$4:P166,P167)<6,MAX($Q$4:Q166)+1,\"\")","v":""}]
[null,null,null,null,null,null,null,null,null,null,null,null,null,null,4,2,{"$f":"IF(COUNTIF($P$4:P167,P168)<6,MAX($Q$4:Q167)+1,\"\")","v":""}]
[null,null,null,null,null,null,null,null,null,null,null,null,null,null,2,2,{"$f":"IF(COUNTIF($P$4:P168,P169)<6,MAX($Q$4:Q168)+1,\"\")","v":""}]
[null,null,null,null,null,null,null,null,null,null,null,null,null,null,5,2,{"$f":"IF(COUNTIF($P$4:P169,P170)<6,MAX($Q$4:Q169)+1,\"\")","v":""}]
[null,null,null,null,null,null,null,null,null,null,null,null,null,null,5,5,{"$f":"IF(COUNTIF($P$4:P170,P171)<6,MAX($Q$4:Q170)+1,\"\")","v":""}]
[null,null,null,null,null,null,null,null,null,null,null,null,null,null,2,1,{"$f":"IF(COUNTIF($P$4:P171,P172)<6,MAX($Q$4:Q171)+1,\"\")","v":""}]
[null,null,null,null,null,null,null,null,null,null,null,null,null,null,5,4,{"$f":"IF(COUNTIF($P$4:P172,P173)<6,MAX($Q$4:Q172)+1,\"\")","v":""}]
[null,null,null,null,null,null,null,null,null,null,null,null,null,null,5,3,{"$f":"IF(COUNTIF($P$4:P173,P174)<6,MAX($Q$4:Q173)+1,\"\")","v":""}]
[null,null,null,null,null,null,null,null,null,null,null,null,null,null,1,4,{"$f":"IF(COUNTIF($P$4:P174,P175)<6,MAX($Q$4:Q174)+1,\"\")","v":""}]
[null,null,null,null,null,null,null,null,null,null,null,null,null,null,5,2,{"$f":"IF(COUNTIF($P$4:P175,P176)<6,MAX($Q$4:Q175)+1,\"\")","v":""}]
[null,null,null,null,null,null,null,null,null,null,null,null,null,null,1,5,{"$f":"IF(COUNTIF($P$4:P176,P177)<6,MAX($Q$4:Q176)+1,\"\")","v":""}]
[null,null,null,null,null,null,null,null,null,null,null,null,null,null,3,4,{"$f":"IF(COUNTIF($P$4:P177,P178)<6,MAX($Q$4:Q177)+1,\"\")","v":""}]
[null,null,null,null,null,null,null,null,null,null,null,null,null,null,3,5,{"$f":"IF(COUNTIF($P$4:P178,P179)<6,MAX($Q$4:Q178)+1,\"\")","v":""}]
[null,null,null,null,null,null,null,null,null,null,null,null,null,null,3,1,{"$f":"IF(COUNTIF($P$4:P179,P180)<6,MAX($Q$4:Q179)+1,\"\")","v":""}]
[null,null,null,null,null,null,null,null,null,null,null,null,null,null,5,2,{"$f":"IF(COUNTIF($P$4:P180,P181)<6,MAX($Q$4:Q180)+1,\"\")","v":""}]
[null,null,null,null,null,null,null,null,null,null,null,null,null,null,1,1,{"$f":"IF(COUNTIF($P$4:P181,P182)<6,MAX($Q$4:Q181)+1,\"\")","v":""}]
[null,null,null,null,null,null,null,null,null,null,null,null,null,null,2,2,{"$f":"IF(COUNTIF($P$4:P182,P183)<6,MAX($Q$4:Q182)+1,\"\")","v":""}]
[null,null,null,null,null,null,null,null,null,null,null,null,null,null,4,1,{"$f":"IF(COUNTIF($P$4:P183,P184)<6,MAX($Q$4:Q183)+1,\"\")","v":""}]
[null,null,null,null,null,null,null,null,null,null,null,null,null,null,4,2,{"$f":"IF(COUNTIF($P$4:P184,P185)<6,MAX($Q$4:Q184)+1,\"\")","v":""}]
[null,null,null,null,null,null,null,null,null,null,null,null,null,null,2,1,{"$f":"IF(COUNTIF($P$4:P185,P186)<6,MAX($Q$4:Q185)+1,\"\")","v":""}]
[null,null,null,null,null,null,null,null,null,null,null,null,null,null,4,4,{"$f":"IF(COUNTIF($P$4:P186,P187)<6,MAX($Q$4:Q186)+1,\"\")","v":""}]
[null,null,null,null,null,null,null,null,null,null,null,null,null,null,3,3,{"$f":"IF(COUNTIF($P$4:P187,P188)<6,MAX($Q$4:Q187)+1,\"\")","v":""}]
[null,null,null,null,null,null,null,null,null,null,null,null,null,null,5,1,{"$f":"IF(COUNTIF($P$4:P188,P189)<6,MAX($Q$4:Q188)+1,\"\")","v":""}]
[null,null,null,null,null,null,null,null,null,null,null,null,null,null,1,1,{"$f":"IF(COUNTIF($P$4:P189,P190)<6,MAX($Q$4:Q189)+1,\"\")","v":""}]
[null,null,null,null,null,null,null,null,null,null,null,null,null,null,3,1,{"$f":"IF(COUNTIF($P$4:P190,P191)<6,MAX($Q$4:Q190)+1,\"\")","v":""}]
[null,null,null,null,null,null,null,null,null,null,null,null,null,null,5,3,{"$f":"IF(COUNTIF($P$4:P191,P192)<6,MAX($Q$4:Q191)+1,\"\")","v":""}]
[null,null,null,null,null,null,null,null,null,null,null,null,null,null,4,1,{"$f":"IF(COUNTIF($P$4:P192,P193)<6,MAX($Q$4:Q192)+1,\"\")","v":""}]
[null,null,null,null,null,null,null,null,null,null,null,null,null,null,2,1,{"$f":"IF(COUNTIF($P$4:P193,P194)<6,MAX($Q$4:Q193)+1,\"\")","v":""}]
[null,null,null,null,null,null,null,null,null,null,null,null,null,null,2,2,{"$f":"IF(COUNTIF($P$4:P194,P195)<6,MAX($Q$4:Q194)+1,\"\")","v":""}]
[null,null,null,null,null,null,null,null,null,null,null,null,null,null,2,1,{"$f":"IF(COUNTIF($P$4:P195,P196)<6,MAX($Q$4:Q195)+1,\"\")","v":""}]
[null,null,null,null,null,null,null,null,null,null,null,null,null,null,3,3,{"$f":"IF(COUNTIF($P$4:P196,P197)<6,MAX($Q$4:Q196)+1,\"\")","v":""}]
[null,null,null,null,null,null,null,null,null,null,null,null,null,null,{"$f":"RANDBETWEEN(1,5)","v":4},5,{"$f":"IF(COUNTIF($P$4:P197,P198)<6,MAX($Q$4:Q197)+1,\"\")","v":""}]
[null,null,null,null,null,null,null,null,null,null,null,null,null,null,3,2,{"$f":"IF(COUNTIF($P$4:P198,P199)<6,MAX($Q$4:Q198)+1,\"\")","v":""}]
[null,null,null,null,null,null,null,null,null,null,null,null,null,null,3,2,{"$f":"IF(COUNTIF($P$4:P199,P200)<6,MAX($Q$4:Q199)+1,\"\")","v":""}]
[null,null,null,null,null,null,null,null,null,null,null,null,null,null,5,3,{"$f":"IF(COUNTIF($P$4:P200,P201)<6,MAX($Q$4:Q200)+1,\"\")","v":""}]
[null,null,null,null,null,null,null,null,null,null,null,null,null,null,4,5,{"$f":"IF(COUNTIF($P$4:P201,P202)<6,MAX($Q$4:Q201)+1,\"\")","v":""}]
[null,null,null,null,null,null,null,null,null,null,null,null,null,null,2,3,{"$f":"IF(COUNTIF($P$4:P202,P203)<6,MAX($Q$4:Q202)+1,\"\")","v":""}]
[null,null,null,null,null,null,null,null,null,null,null,null,null,null,2,3,{"$f":"IF(COUNTIF($P$4:P203,P204)<6,MAX($Q$4:Q203)+1,\"\")","v":""}]
[null,null,null,null,null,null,null,null,null,null,null,null,null,null,3,4,{"$f":"IF(COUNTIF($P$4:P204,P205)<6,MAX($Q$4:Q204)+1,\"\")","v":""}]
[null,null,null,null,null,null,null,null,null,null,null,null,null,null,4,1,{"$f":"IF(COUNTIF($P$4:P205,P206)<6,MAX($Q$4:Q205)+1,\"\")","v":""}]
[null,null,null,null,null,null,null,null,null,null,null,null,null,null,3,5,{"$f":"IF(COUNTIF($P$4:P206,P207)<6,MAX($Q$4:Q206)+1,\"\")","v":""}]
[null,null,null,null,null,null,null,null,null,null,null,null,null,null,4,1,{"$f":"IF(COUNTIF($P$4:P207,P208)<6,MAX($Q$4:Q207)+1,\"\")","v":""}]
[null,null,null,null,null,null,null,null,null,null,null,null,null,null,5,3,{"$f":"IF(COUNTIF($P$4:P208,P209)<6,MAX($Q$4:Q208)+1,\"\")","v":""}]
[null,null,null,null,null,null,null,null,null,null,null,null,null,null,1,2,{"$f":"IF(COUNTIF($P$4:P209,P210)<6,MAX($Q$4:Q209)+1,\"\")","v":""}]
[null,null,null,null,null,null,null,null,null,null,null,null,null,null,5,1,{"$f":"IF(COUNTIF($P$4:P210,P211)<6,MAX($Q$4:Q210)+1,\"\")","v":""}]
[null,null,null,null,null,null,null,null,null,null,null,null,null,null,5,5,{"$f":"IF(COUNTIF($P$4:P211,P212)<6,MAX($Q$4:Q211)+1,\"\")","v":""}]
[null,null,null,null,null,null,null,null,null,null,null,null,null,null,4,2,{"$f":"IF(COUNTIF($P$4:P212,P213)<6,MAX($Q$4:Q212)+1,\"\")","v":""}]
[null,null,null,null,null,null,null,null,null,null,null,null,null,null,5,1,{"$f":"IF(COUNTIF($P$4:P213,P214)<6,MAX($Q$4:Q213)+1,\"\")","v":""}]
[null,null,null,null,null,null,null,null,null,null,null,null,null,null,5,1,{"$f":"IF(COUNTIF($P$4:P214,P215)<6,MAX($Q$4:Q214)+1,\"\")","v":""}]
[null,null,null,null,null,null,null,null,null,null,null,null,null,null,5,2,{"$f":"IF(COUNTIF($P$4:P215,P216)<6,MAX($Q$4:Q215)+1,\"\")","v":""}]
[null,null,null,null,null,null,null,null,null,null,null,null,null,null,5,1,{"$f":"IF(COUNTIF($P$4:P216,P217)<6,MAX($Q$4:Q216)+1,\"\")","v":""}]
[null,null,null,null,null,null,null,null,null,null,null,null,null,null,5,2,{"$f":"IF(COUNTIF($P$4:P217,P218)<6,MAX($Q$4:Q217)+1,\"\")","v":""}]
[null,null,null,null,null,null,null,null,null,null,null,null,null,null,5,2,{"$f":"IF(COUNTIF($P$4:P218,P219)<6,MAX($Q$4:Q218)+1,\"\")","v":""}]
[null,null,null,null,null,null,null,null,null,null,null,null,null,null,2,3,{"$f":"IF(COUNTIF($P$4:P219,P220)<6,MAX($Q$4:Q219)+1,\"\")","v":""}]
[null,null,null,null,null,null,null,null,null,null,null,null,null,null,2,2,{"$f":"IF(COUNTIF($P$4:P220,P221)<6,MAX($Q$4:Q220)+1,\"\")","v":""}]
[null,null,null,null,null,null,null,null,null,null,null,null,null,null,2,5,{"$f":"IF(COUNTIF($P$4:P221,P222)<6,MAX($Q$4:Q221)+1,\"\")","v":""}]
[null,null,null,null,null,null,null,null,null,null,null,null,null,null,4,1,{"$f":"IF(COUNTIF($P$4:P222,P223)<6,MAX($Q$4:Q222)+1,\"\")","v":""}]
[null,null,null,null,null,null,null,null,null,null,null,null,null,null,4,3,{"$f":"IF(COUNTIF($P$4:P223,P224)<6,MAX($Q$4:Q223)+1,\"\")","v":""}]
[null,null,null,null,null,null,null,null,null,null,null,null,null,null,5,4,{"$f":"IF(COUNTIF($P$4:P224,P225)<6,MAX($Q$4:Q224)+1,\"\")","v":""}]
[null,null,null,null,null,null,null,null,null,null,null,null,null,null,1,2,{"$f":"IF(COUNTIF($P$4:P225,P226)<6,MAX($Q$4:Q225)+1,\"\")","v":""}]
[null,null,null,null,null,null,null,null,null,null,null,null,null,null,3,3,{"$f":"IF(COUNTIF($P$4:P226,P227)<6,MAX($Q$4:Q226)+1,\"\")","v":""}]
[null,null,null,null,null,null,null,null,null,null,null,null,null,null,1,1,{"$f":"IF(COUNTIF($P$4:P227,P228)<6,MAX($Q$4:Q227)+1,\"\")","v":""}]
[null,null,null,null,null,null,null,null,null,null,null,null,null,null,2,5,{"$f":"IF(COUNTIF($P$4:P228,P229)<6,MAX($Q$4:Q228)+1,\"\")","v":""}]
[null,null,null,null,null,null,null,null,null,null,null,null,null,null,2,3,{"$f":"IF(COUNTIF($P$4:P229,P230)<6,MAX($Q$4:Q229)+1,\"\")","v":""}]
[null,null,null,null,null,null,null,null,null,null,null,null,null,null,3,3,{"$f":"IF(COUNTIF($P$4:P230,P231)<6,MAX($Q$4:Q230)+1,\"\")","v":""}]
[null,null,null,null,null,null,null,null,null,null,null,null,null,null,5,2,{"$f":"IF(COUNTIF($P$4:P231,P232)<6,MAX($Q$4:Q231)+1,\"\")","v":""}]
[null,null,null,null,null,null,null,null,null,null,null,null,null,null,3,2,{"$f":"IF(COUNTIF($P$4:P232,P233)<6,MAX($Q$4:Q232)+1,\"\")","v":""}]
[null,null,null,null,null,null,null,null,null,null,null,null,null,null,2,5,{"$f":"IF(COUNTIF($P$4:P233,P234)<6,MAX($Q$4:Q233)+1,\"\")","v":""}]
[null,null,null,null,null,null,null,null,null,null,null,null,null,null,4,5,{"$f":"IF(COUNTIF($P$4:P234,P235)<6,MAX($Q$4:Q234)+1,\"\")","v":""}]
[null,null,null,null,null,null,null,null,null,null,null,null,null,null,5,5,{"$f":"IF(COUNTIF($P$4:P235,P236)<6,MAX($Q$4:Q235)+1,\"\")","v":""}]
[null,null,null,null,null,null,null,null,null,null,null,null,null,null,1,5,{"$f":"IF(COUNTIF($P$4:P236,P237)<6,MAX($Q$4:Q236)+1,\"\")","v":""}]
[null,null,null,null,null,null,null,null,null,null,null,null,null,null,1,4,{"$f":"IF(COUNTIF($P$4:P237,P238)<6,MAX($Q$4:Q237)+1,\"\")","v":""}]
[null,null,null,null,null,null,null,null,null,null,null,null,null,null,5,4,{"$f":"IF(COUNTIF($P$4:P238,P239)<6,MAX($Q$4:Q238)+1,\"\")","v":""}]
[null,null,null,null,null,null,null,null,null,null,null,null,null,null,4,5,{"$f":"IF(COUNTIF($P$4:P239,P240)<6,MAX($Q$4:Q239)+1,\"\")","v":""}]
[null,null,null,null,null,null,null,null,null,null,null,null,null,null,3,1,{"$f":"IF(COUNTIF($P$4:P240,P241)<6,MAX($Q$4:Q240)+1,\"\")","v":""}]
[null,null,null,null,null,null,null,null,null,null,null,null,null,null,5,4,{"$f":"IF(COUNTIF($P$4:P241,P242)<6,MAX($Q$4:Q241)+1,\"\")","v":""}]
[null,null,null,null,null,null,null,null,null,null,null,null,null,null,4,5,{"$f":"IF(COUNTIF($P$4:P242,P243)<6,MAX($Q$4:Q242)+1,\"\")","v":""}]
[null,null,null,null,null,null,null,null,null,null,null,null,null,null,2,3,{"$f":"IF(COUNTIF($P$4:P243,P244)<6,MAX($Q$4:Q243)+1,\"\")","v":""}]
[null,null,null,null,null,null,null,null,null,null,null,null,null,null,1,1,{"$f":"IF(COUNTIF($P$4:P244,P245)<6,MAX($Q$4:Q244)+1,\"\")","v":""}]
[null,null,null,null,null,null,null,null,null,null,null,null,null,null,2,3,{"$f":"IF(COUNTIF($P$4:P245,P246)<6,MAX($Q$4:Q245)+1,\"\")","v":""}]
[null,null,null,null,null,null,null,null,null,null,null,null,null,null,5,2,{"$f":"IF(COUNTIF($P$4:P246,P247)<6,MAX($Q$4:Q246)+1,\"\")","v":""}]
[null,null,null,null,null,null,null,null,null,null,null,null,null,null,4,4,{"$f":"IF(COUNTIF($P$4:P247,P248)<6,MAX($Q$4:Q247)+1,\"\")","v":""}]
[null,null,null,null,null,null,null,null,null,null,null,null,null,null,4,4,{"$f":"IF(COUNTIF($P$4:P248,P249)<6,MAX($Q$4:Q248)+1,\"\")","v":""}]
[null,null,null,null,null,null,null,null,null,null,null,null,null,null,2,5,{"$f":"IF(COUNTIF($P$4:P249,P250)<6,MAX($Q$4:Q249)+1,\"\")","v":""}]
[null,null,null,null,null,null,null,null,null,null,null,null,null,null,1,4,{"$f":"IF(COUNTIF($P$4:P250,P251)<6,MAX($Q$4:Q250)+1,\"\")","v":""}]
[null,null,null,null,null,null,null,null,null,null,null,null,null,null,4,2,{"$f":"IF(COUNTIF($P$4:P251,P252)<6,MAX($Q$4:Q251)+1,\"\")","v":""}]
[null,null,null,null,null,null,null,null,null,null,null,null,null,null,2,2,{"$f":"IF(COUNTIF($P$4:P252,P253)<6,MAX($Q$4:Q252)+1,\"\")","v":""}]
[null,null,null,null,null,null,null,null,null,null,null,null,null,null,2,5,{"$f":"IF(COUNTIF($P$4:P253,P254)<6,MAX($Q$4:Q253)+1,\"\")","v":""}]
[null,null,null,null,null,null,null,null,null,null,null,null,null,null,4,2,{"$f":"IF(COUNTIF($P$4:P254,P255)<6,MAX($Q$4:Q254)+1,\"\")","v":""}]
[null,null,null,null,null,null,null,null,null,null,null,null,null,null,2,2,{"$f":"IF(COUNTIF($P$4:P255,P256)<6,MAX($Q$4:Q255)+1,\"\")","v":""}]
[null,null,null,null,null,null,null,null,null,null,null,null,null,null,3,2,{"$f":"IF(COUNTIF($P$4:P256,P257)<6,MAX($Q$4:Q256)+1,\"\")","v":""}]
[null,null,null,null,null,null,null,null,null,null,null,null,null,null,1,3,{"$f":"IF(COUNTIF($P$4:P257,P258)<6,MAX($Q$4:Q257)+1,\"\")","v":""}]
[null,null,null,null,null,null,null,null,null,null,null,null,null,null,5,2,{"$f":"IF(COUNTIF($P$4:P258,P259)<6,MAX($Q$4:Q258)+1,\"\")","v":""}]
[null,null,null,null,null,null,null,null,null,null,null,null,null,null,5,4,{"$f":"IF(COUNTIF($P$4:P259,P260)<6,MAX($Q$4:Q259)+1,\"\")","v":""}]
[null,null,null,null,null,null,null,null,null,null,null,null,null,null,5,4,{"$f":"IF(COUNTIF($P$4:P260,P261)<6,MAX($Q$4:Q260)+1,\"\")","v":""}]
[null,null,null,null,null,null,null,null,null,null,null,null,null,null,{"$f":"RANDBETWEEN(1,5)","v":3},4,{"$f":"IF(COUNTIF($P$4:P261,P262)<6,MAX($Q$4:Q261)+1,\"\")","v":""}]
[null,null,null,null,null,null,null,null,null,null,null,null,null,null,4,2,{"$f":"IF(COUNTIF($P$4:P262,P263)<6,MAX($Q$4:Q262)+1,\"\")","v":""}]
[null,null,null,null,null,null,null,null,null,null,null,null,null,null,1,5,{"$f":"IF(COUNTIF($P$4:P263,P264)<6,MAX($Q$4:Q263)+1,\"\")","v":""}]
[null,null,null,null,null,null,null,null,null,null,null,null,null,null,1,5,{"$f":"IF(COUNTIF($P$4:P264,P265)<6,MAX($Q$4:Q264)+1,\"\")","v":""}]
[null,null,null,null,null,null,null,null,null,null,null,null,null,null,2,1,{"$f":"IF(COUNTIF($P$4:P265,P266)<6,MAX($Q$4:Q265)+1,\"\")","v":""}]
[null,null,null,null,null,null,null,null,null,null,null,null,null,null,4,4,{"$f":"IF(COUNTIF($P$4:P266,P267)<6,MAX($Q$4:Q266)+1,\"\")","v":""}]
[null,null,null,null,null,null,null,null,null,null,null,null,null,null,1,2,{"$f":"IF(COUNTIF($P$4:P267,P268)<6,MAX($Q$4:Q267)+1,\"\")","v":""}]
[null,null,null,null,null,null,null,null,null,null,null,null,null,null,3,4,{"$f":"IF(COUNTIF($P$4:P268,P269)<6,MAX($Q$4:Q268)+1,\"\")","v":""}]
[null,null,null,null,null,null,null,null,null,null,null,null,null,null,3,1,{"$f":"IF(COUNTIF($P$4:P269,P270)<6,MAX($Q$4:Q269)+1,\"\")","v":""}]
[null,null,null,null,null,null,null,null,null,null,null,null,null,null,5,1,{"$f":"IF(COUNTIF($P$4:P270,P271)<6,MAX($Q$4:Q270)+1,\"\")","v":""}]
[null,null,null,null,null,null,null,null,null,null,null,null,null,null,1,5,{"$f":"IF(COUNTIF($P$4:P271,P272)<6,MAX($Q$4:Q271)+1,\"\")","v":""}]
[null,null,null,null,null,null,null,null,null,null,null,null,null,null,5,2,{"$f":"IF(COUNTIF($P$4:P272,P273)<6,MAX($Q$4:Q272)+1,\"\")","v":""}]
[null,null,null,null,null,null,null,null,null,null,null,null,null,null,4,4,{"$f":"IF(COUNTIF($P$4:P273,P274)<6,MAX($Q$4:Q273)+1,\"\")","v":""}]
[null,null,null,null,null,null,null,null,null,null,null,null,null,null,1,1,{"$f":"IF(COUNTIF($P$4:P274,P275)<6,MAX($Q$4:Q274)+1,\"\")","v":""}]
[null,null,null,null,null,null,null,null,null,null,null,null,null,null,1,4,{"$f":"IF(COUNTIF($P$4:P275,P276)<6,MAX($Q$4:Q275)+1,\"\")","v":""}]
[null,null,null,null,null,null,null,null,null,null,null,null,null,null,4,2,{"$f":"IF(COUNTIF($P$4:P276,P277)<6,MAX($Q$4:Q276)+1,\"\")","v":""}]
[null,null,null,null,null,null,null,null,null,null,null,null,null,null,4,4,{"$f":"IF(COUNTIF($P$4:P277,P278)<6,MAX($Q$4:Q277)+1,\"\")","v":""}]
[null,null,null,null,null,null,null,null,null,null,null,null,null,null,2,3,{"$f":"IF(COUNTIF($P$4:P278,P279)<6,MAX($Q$4:Q278)+1,\"\")","v":""}]
[null,null,null,null,null,null,null,null,null,null,null,null,null,null,4,5,{"$f":"IF(COUNTIF($P$4:P279,P280)<6,MAX($Q$4:Q279)+1,\"\")","v":""}]
[null,null,null,null,null,null,null,null,null,null,null,null,null,null,2,5,{"$f":"IF(COUNTIF($P$4:P280,P281)<6,MAX($Q$4:Q280)+1,\"\")","v":""}]
[null,null,null,null,null,null,null,null,null,null,null,null,null,null,4,5,{"$f":"IF(COUNTIF($P$4:P281,P282)<6,MAX($Q$4:Q281)+1,\"\")","v":""}]
[null,null,null,null,null,null,null,null,null,null,null,null,null,null,4,2,{"$f":"IF(COUNTIF($P$4:P282,P283)<6,MAX($Q$4:Q282)+1,\"\")","v":""}]
[null,null,null,null,null,null,null,null,null,null,null,null,null,null,3,2,{"$f":"IF(COUNTIF($P$4:P283,P284)<6,MAX($Q$4:Q283)+1,\"\")","v":""}]
[null,null,null,null,null,null,null,null,null,null,null,null,null,null,4,1,{"$f":"IF(COUNTIF($P$4:P284,P285)<6,MAX($Q$4:Q284)+1,\"\")","v":""}]
[null,null,null,null,null,null,null,null,null,null,null,null,null,null,1,3,{"$f":"IF(COUNTIF($P$4:P285,P286)<6,MAX($Q$4:Q285)+1,\"\")","v":""}]
[null,null,null,null,null,null,null,null,null,null,null,null,null,null,4,4,{"$f":"IF(COUNTIF($P$4:P286,P287)<6,MAX($Q$4:Q286)+1,\"\")","v":""}]
[null,null,null,null,null,null,null,null,null,null,null,null,null,null,3,1,{"$f":"IF(COUNTIF($P$4:P287,P288)<6,MAX($Q$4:Q287)+1,\"\")","v":""}]
[null,null,null,null,null,null,null,null,null,null,null,null,null,null,5,3,{"$f":"IF(COUNTIF($P$4:P288,P289)<6,MAX($Q$4:Q288)+1,\"\")","v":""}]
[null,null,null,null,null,null,null,null,null,null,null,null,null,null,5,2,{"$f":"IF(COUNTIF($P$4:P289,P290)<6,MAX($Q$4:Q289)+1,\"\")","v":""}]
[null,null,null,null,null,null,null,null,null,null,null,null,null,null,2,2,{"$f":"IF(COUNTIF($P$4:P290,P291)<6,MAX($Q$4:Q290)+1,\"\")","v":""}]
[null,null,null,null,null,null,null,null,null,null,null,null,null,null,4,3,{"$f":"IF(COUNTIF($P$4:P291,P292)<6,MAX($Q$4:Q291)+1,\"\")","v":""}]
[null,null,null,null,null,null,null,null,null,null,null,null,null,null,5,2,{"$f":"IF(COUNTIF($P$4:P292,P293)<6,MAX($Q$4:Q292)+1,\"\")","v":""}]
[null,null,null,null,null,null,null,null,null,null,null,null,null,null,2,3,{"$f":"IF(COUNTIF($P$4:P293,P294)<6,MAX($Q$4:Q293)+1,\"\")","v":""}]
[null,null,null,null,null,null,null,null,null,null,null,null,null,null,5,3,{"$f":"IF(COUNTIF($P$4:P294,P295)<6,MAX($Q$4:Q294)+1,\"\")","v":""}]
[null,null,null,null,null,null,null,null,null,null,null,null,null,null,5,4,{"$f":"IF(COUNTIF($P$4:P295,P296)<6,MAX($Q$4:Q295)+1,\"\")","v":""}]
[null,null,null,null,null,null,null,null,null,null,null,null,null,null,5,2,{"$f":"IF(COUNTIF($P$4:P296,P297)<6,MAX($Q$4:Q296)+1,\"\")","v":""}]
[null,null,null,null,null,null,null,null,null,null,null,null,null,null,3,2,{"$f":"IF(COUNTIF($P$4:P297,P298)<6,MAX($Q$4:Q297)+1,\"\")","v":""}]
[null,null,null,null,null,null,null,null,null,null,null,null,null,null,2,3,{"$f":"IF(COUNTIF($P$4:P298,P299)<6,MAX($Q$4:Q298)+1,\"\")","v":""}]
[null,null,null,null,null,null,null,null,null,null,null,null,null,null,5,1,{"$f":"IF(COUNTIF($P$4:P299,P300)<6,MAX($Q$4:Q299)+1,\"\")","v":""}]
[null,null,null,null,null,null,null,null,null,null,null,null,null,null,1,5,{"$f":"IF(COUNTIF($P$4:P300,P301)<6,MAX($Q$4:Q300)+1,\"\")","v":""}]
[null,null,null,null,null,null,null,null,null,null,null,null,null,null,1,2,{"$f":"IF(COUNTIF($P$4:P301,P302)<6,MAX($Q$4:Q301)+1,\"\")","v":""}]
[null,null,null,null,null,null,null,null,null,null,null,null,null,null,3,1,{"$f":"IF(COUNTIF($P$4:P302,P303)<6,MAX($Q$4:Q302)+1,\"\")","v":""}]
[null,null,null,null,null,null,null,null,null,null,null,null,null,null,4,3,{"$f":"IF(COUNTIF($P$4:P303,P304)<6,MAX($Q$4:Q303)+1,\"\")","v":""}]
[null,null,null,null,null,null,null,null,null,null,null,null,null,null,2,4,{"$f":"IF(COUNTIF($P$4:P304,P305)<6,MAX($Q$4:Q304)+1,\"\")","v":""}]
[null,null,null,null,null,null,null,null,null,null,null,null,null,null,5,2,{"$f":"IF(COUNTIF($P$4:P305,P306)<6,MAX($Q$4:Q305)+1,\"\")","v":""}]
[null,null,null,null,null,null,null,null,null,null,null,null,null,null,2,5,{"$f":"IF(COUNTIF($P$4:P306,P307)<6,MAX($Q$4:Q306)+1,\"\")","v":""}]
[null,null,null,null,null,null,null,null,null,null,null,null,null,null,4,2,{"$f":"IF(COUNTIF($P$4:P307,P308)<6,MAX($Q$4:Q307)+1,\"\")","v":""}]
[null,null,null,null,null,null,null,null,null,null,null,null,null,null,4,1,{"$f":"IF(COUNTIF($P$4:P308,P309)<6,MAX($Q$4:Q308)+1,\"\")","v":""}]
[null,null,null,null,null,null,null,null,null,null,null,null,null,null,2,1,{"$f":"IF(COUNTIF($P$4:P309,P310)<6,MAX($Q$4:Q309)+1,\"\")","v":""}]
[null,null,null,null,null,null,null,null,null,null,null,null,null,null,3,2,{"$f":"IF(COUNTIF($P$4:P310,P311)<6,MAX($Q$4:Q310)+1,\"\")","v":""}]
[null,null,null,null,null,null,null,null,null,null,null,null,null,null,2,5,{"$f":"IF(COUNTIF($P$4:P311,P312)<6,MAX($Q$4:Q311)+1,\"\")","v":""}]
[null,null,null,null,null,null,null,null,null,null,null,null,null,null,3,5,{"$f":"IF(COUNTIF($P$4:P312,P313)<6,MAX($Q$4:Q312)+1,\"\")","v":""}]
[null,null,null,null,null,null,null,null,null,null,null,null,null,null,1,3,{"$f":"IF(COUNTIF($P$4:P313,P314)<6,MAX($Q$4:Q313)+1,\"\")","v":""}]
[null,null,null,null,null,null,null,null,null,null,null,null,null,null,5,5,{"$f":"IF(COUNTIF($P$4:P314,P315)<6,MAX($Q$4:Q314)+1,\"\")","v":""}]
[null,null,null,null,null,null,null,null,null,null,null,null,null,null,1,3,{"$f":"IF(COUNTIF($P$4:P315,P316)<6,MAX($Q$4:Q315)+1,\"\")","v":""}]
[null,null,null,null,null,null,null,null,null,null,null,null,null,null,1,5,{"$f":"IF(COUNTIF($P$4:P316,P317)<6,MAX($Q$4:Q316)+1,\"\")","v":""}]
[null,null,null,null,null,null,null,null,null,null,null,null,null,null,2,4,{"$f":"IF(COUNTIF($P$4:P317,P318)<6,MAX($Q$4:Q317)+1,\"\")","v":""}]
[null,null,null,null,null,null,null,null,null,null,null,null,null,null,3,1,{"$f":"IF(COUNTIF($P$4:P318,P319)<6,MAX($Q$4:Q318)+1,\"\")","v":""}]
[null,null,null,null,null,null,null,null,null,null,null,null,null,null,3,2,{"$f":"IF(COUNTIF($P$4:P319,P320)<6,MAX($Q$4:Q319)+1,\"\")","v":""}]
[null,null,null,null,null,null,null,null,null,null,null,null,null,null,1,3,{"$f":"IF(COUNTIF($P$4:P320,P321)<6,MAX($Q$4:Q320)+1,\"\")","v":""}]
[null,null,null,null,null,null,null,null,null,null,null,null,null,null,1,4,{"$f":"IF(COUNTIF($P$4:P321,P322)<6,MAX($Q$4:Q321)+1,\"\")","v":""}]
[null,null,null,null,null,null,null,null,null,null,null,null,null,null,3,3,{"$f":"IF(COUNTIF($P$4:P322,P323)<6,MAX($Q$4:Q322)+1,\"\")","v":""}]
[null,null,null,null,null,null,null,null,null,null,null,null,null,null,1,4,{"$f":"IF(COUNTIF($P$4:P323,P324)<6,MAX($Q$4:Q323)+1,\"\")","v":""}]
[null,null,null,null,null,null,null,null,null,null,null,null,null,null,3,5,{"$f":"IF(COUNTIF($P$4:P324,P325)<6,MAX($Q$4:Q324)+1,\"\")","v":""}]
[null,null,null,null,null,null,null,null,null,null,null,null,null,null,{"$f":"RANDBETWEEN(1,5)","v":4},3,{"$f":"IF(COUNTIF($P$4:P325,P326)<6,MAX($Q$4:Q325)+1,\"\")","v":""}]
[null,null,null,null,null,null,null,null,null,null,null,null,null,null,1,4,{"$f":"IF(COUNTIF($P$4:P326,P327)<6,MAX($Q$4:Q326)+1,\"\")","v":""}]
[null,null,null,null,null,null,null,null,null,null,null,null,null,null,2,1,{"$f":"IF(COUNTIF($P$4:P327,P328)<6,MAX($Q$4:Q327)+1,\"\")","v":""}]
[null,null,null,null,null,null,null,null,null,null,null,null,null,null,4,4,{"$f":"IF(COUNTIF($P$4:P328,P329)<6,MAX($Q$4:Q328)+1,\"\")","v":""}]
[null,null,null,null,null,null,null,null,null,null,null,null,null,null,5,5,{"$f":"IF(COUNTIF($P$4:P329,P330)<6,MAX($Q$4:Q329)+1,\"\")","v":""}]
[null,null,null,null,null,null,null,null,null,null,null,null,null,null,3,4,{"$f":"IF(COUNTIF($P$4:P330,P331)<6,MAX($Q$4:Q330)+1,\"\")","v":""}]
[null,null,null,null,null,null,null,null,null,null,null,null,null,null,3,3,{"$f":"IF(COUNTIF($P$4:P331,P332)<6,MAX($Q$4:Q331)+1,\"\")","v":""}]
[null,null,null,null,null,null,null,null,null,null,null,null,null,null,4,1,{"$f":"IF(COUNTIF($P$4:P332,P333)<6,MAX($Q$4:Q332)+1,\"\")","v":""}]
[null,null,null,null,null,null,null,null,null,null,null,null,null,null,4,1,{"$f":"IF(COUNTIF($P$4:P333,P334)<6,MAX($Q$4:Q333)+1,\"\")","v":""}]
[null,null,null,null,null,null,null,null,null,null,null,null,null,null,2,5,{"$f":"IF(COUNTIF($P$4:P334,P335)<6,MAX($Q$4:Q334)+1,\"\")","v":""}]
[null,null,null,null,null,null,null,null,null,null,null,null,null,null,4,4,{"$f":"IF(COUNTIF($P$4:P335,P336)<6,MAX($Q$4:Q335)+1,\"\")","v":""}]
[null,null,null,null,null,null,null,null,null,null,null,null,null,null,2,3,{"$f":"IF(COUNTIF($P$4:P336,P337)<6,MAX($Q$4:Q336)+1,\"\")","v":""}]
[null,null,null,null,null,null,null,null,null,null,null,null,null,null,1,1,{"$f":"IF(COUNTIF($P$4:P337,P338)<6,MAX($Q$4:Q337)+1,\"\")","v":""}]
[null,null,null,null,null,null,null,null,null,null,null,null,null,null,3,2,{"$f":"IF(COUNTIF($P$4:P338,P339)<6,MAX($Q$4:Q338)+1,\"\")","v":""}]
[null,null,null,null,null,null,null,null,null,null,null,null,null,null,2,1,{"$f":"IF(COUNTIF($P$4:P339,P340)<6,MAX($Q$4:Q339)+1,\"\")","v":""}]
[null,null,null,null,null,null,null,null,null,null,null,null,null,null,2,2,{"$f":"IF(COUNTIF($P$4:P340,P341)<6,MAX($Q$4:Q340)+1,\"\")","v":""}]
[null,null,null,null,null,null,null,null,null,null,null,null,null,null,1,3,{"$f":"IF(COUNTIF($P$4:P341,P342)<6,MAX($Q$4:Q341)+1,\"\")","v":""}]
[null,null,null,null,null,null,null,null,null,null,null,null,null,null,4,3,{"$f":"IF(COUNTIF($P$4:P342,P343)<6,MAX($Q$4:Q342)+1,\"\")","v":""}]
[null,null,null,null,null,null,null,null,null,null,null,null,null,null,5,1,{"$f":"IF(COUNTIF($P$4:P343,P344)<6,MAX($Q$4:Q343)+1,\"\")","v":""}]
[null,null,null,null,null,null,null,null,null,null,null,null,null,null,1,2,{"$f":"IF(COUNTIF($P$4:P344,P345)<6,MAX($Q$4:Q344)+1,\"\")","v":""}]
[null,null,null,null,null,null,null,null,null,null,null,null,null,null,4,4,{"$f":"IF(COUNTIF($P$4:P345,P346)<6,MAX($Q$4:Q345)+1,\"\")","v":""}]
[null,null,null,null,null,null,null,null,null,null,null,null,null,null,4,3,{"$f":"IF(COUNTIF($P$4:P346,P347)<6,MAX($Q$4:Q346)+1,\"\")","v":""}]
[null,null,null,null,null,null,null,null,null,null,null,null,null,null,3,1,{"$f":"IF(COUNTIF($P$4:P347,P348)<6,MAX($Q$4:Q347)+1,\"\")","v":""}]
[null,null,null,null,null,null,null,null,null,null,null,null,null,null,1,5,{"$f":"IF(COUNTIF($P$4:P348,P349)<6,MAX($Q$4:Q348)+1,\"\")","v":""}]
[null,null,null,null,null,null,null,null,null,null,null,null,null,null,3,4,{"$f":"IF(COUNTIF($P$4:P349,P350)<6,MAX($Q$4:Q349)+1,\"\")","v":""}]
[null,null,null,null,null,null,null,null,null,null,null,null,null,null,3,3,{"$f":"IF(COUNTIF($P$4:P350,P351)<6,MAX($Q$4:Q350)+1,\"\")","v":""}]
[null,null,null,null,null,null,null,null,null,null,null,null,null,null,1,5,{"$f":"IF(COUNTIF($P$4:P351,P352)<6,MAX($Q$4:Q351)+1,\"\")","v":""}]
[null,null,null,null,null,null,null,null,null,null,null,null,null,null,1,2,{"$f":"IF(COUNTIF($P$4:P352,P353)<6,MAX($Q$4:Q352)+1,\"\")","v":""}]
[null,null,null,null,null,null,null,null,null,null,null,null,null,null,3,5,{"$f":"IF(COUNTIF($P$4:P353,P354)<6,MAX($Q$4:Q353)+1,\"\")","v":""}]
[null,null,null,null,null,null,null,null,null,null,null,null,null,null,1,4,{"$f":"IF(COUNTIF($P$4:P354,P355)<6,MAX($Q$4:Q354)+1,\"\")","v":""}]
[null,null,null,null,null,null,null,null,null,null,null,null,null,null,1,1,{"$f":"IF(COUNTIF($P$4:P355,P356)<6,MAX($Q$4:Q355)+1,\"\")","v":""}]
[null,null,null,null,null,null,null,null,null,null,null,null,null,null,1,2,{"$f":"IF(COUNTIF($P$4:P356,P357)<6,MAX($Q$4:Q356)+1,\"\")","v":""}]
[null,null,null,null,null,null,null,null,null,null,null,null,null,null,1,1,{"$f":"IF(COUNTIF($P$4:P357,P358)<6,MAX($Q$4:Q357)+1,\"\")","v":""}]
[null,null,null,null,null,null,null,null,null,null,null,null,null,null,5,4,{"$f":"IF(COUNTIF($P$4:P358,P359)<6,MAX($Q$4:Q358)+1,\"\")","v":""}]
[null,null,null,null,null,null,null,null,null,null,null,null,null,null,1,3,{"$f":"IF(COUNTIF($P$4:P359,P360)<6,MAX($Q$4:Q359)+1,\"\")","v":""}]
[null,null,null,null,null,null,null,null,null,null,null,null,null,null,2,2,{"$f":"IF(COUNTIF($P$4:P360,P361)<6,MAX($Q$4:Q360)+1,\"\")","v":""}]
[null,null,null,null,null,null,null,null,null,null,null,null,null,null,3,4,{"$f":"IF(COUNTIF($P$4:P361,P362)<6,MAX($Q$4:Q361)+1,\"\")","v":""}]
[null,null,null,null,null,null,null,null,null,null,null,null,null,null,5,5,{"$f":"IF(COUNTIF($P$4:P362,P363)<6,MAX($Q$4:Q362)+1,\"\")","v":""}]
[null,null,null,null,null,null,null,null,null,null,null,null,null,null,4,2,{"$f":"IF(COUNTIF($P$4:P363,P364)<6,MAX($Q$4:Q363)+1,\"\")","v":""}]
[null,null,null,null,null,null,null,null,null,null,null,null,null,null,2,5,{"$f":"IF(COUNTIF($P$4:P364,P365)<6,MAX($Q$4:Q364)+1,\"\")","v":""}]
[null,null,null,null,null,null,null,null,null,null,null,null,null,null,3,4,{"$f":"IF(COUNTIF($P$4:P365,P366)<6,MAX($Q$4:Q365)+1,\"\")","v":""}]
[null,null,null,null,null,null,null,null,null,null,null,null,null,null,3,3,{"$f":"IF(COUNTIF($P$4:P366,P367)<6,MAX($Q$4:Q366)+1,\"\")","v":""}]
[null,null,null,null,null,null,null,null,null,null,null,null,null,null,2,1,{"$f":"IF(COUNTIF($P$4:P367,P368)<6,MAX($Q$4:Q367)+1,\"\")","v":""}]
[null,null,null,null,null,null,null,null,null,null,null,null,null,null,2,2,{"$f":"IF(COUNTIF($P$4:P368,P369)<6,MAX($Q$4:Q368)+1,\"\")","v":""}]
[null,null,null,null,null,null,null,null,null,null,null,null,null,null,5,1,{"$f":"IF(COUNTIF($P$4:P369,P370)<6,MAX($Q$4:Q369)+1,\"\")","v":""}]
[null,null,null,null,null,null,null,null,null,null,null,null,null,null,3,4,{"$f":"IF(COUNTIF($P$4:P370,P371)<6,MAX($Q$4:Q370)+1,\"\")","v":""}]
[null,null,null,null,null,null,null,null,null,null,null,null,null,null,1,2,{"$f":"IF(COUNTIF($P$4:P371,P372)<6,MAX($Q$4:Q371)+1,\"\")","v":""}]
[null,null,null,null,null,null,null,null,null,null,null,null,null,null,5,2,{"$f":"IF(COUNTIF($P$4:P372,P373)<6,MAX($Q$4:Q372)+1,\"\")","v":""}]
[null,null,null,null,null,null,null,null,null,null,null,null,null,null,4,5,{"$f":"IF(COUNTIF($P$4:P373,P374)<6,MAX($Q$4:Q373)+1,\"\")","v":""}]
[null,null,null,null,null,null,null,null,null,null,null,null,null,null,1,4,{"$f":"IF(COUNTIF($P$4:P374,P375)<6,MAX($Q$4:Q374)+1,\"\")","v":""}]
[null,null,null,null,null,null,null,null,null,null,null,null,null,null,2,2,{"$f":"IF(COUNTIF($P$4:P375,P376)<6,MAX($Q$4:Q375)+1,\"\")","v":""}]
[null,null,null,null,null,null,null,null,null,null,null,null,null,null,5,5,{"$f":"IF(COUNTIF($P$4:P376,P377)<6,MAX($Q$4:Q376)+1,\"\")","v":""}]
[null,null,null,null,null,null,null,null,null,null,null,null,null,null,4,5,{"$f":"IF(COUNTIF($P$4:P377,P378)<6,MAX($Q$4:Q377)+1,\"\")","v":""}]
[null,null,null,null,null,null,null,null,null,null,null,null,null,null,2,3,{"$f":"IF(COUNTIF($P$4:P378,P379)<6,MAX($Q$4:Q378)+1,\"\")","v":""}]
[null,null,null,null,null,null,null,null,null,null,null,null,null,null,2,5,{"$f":"IF(COUNTIF($P$4:P379,P380)<6,MAX($Q$4:Q379)+1,\"\")","v":""}]
[null,null,null,null,null,null,null,null,null,null,null,null,null,null,4,4,{"$f":"IF(COUNTIF($P$4:P380,P381)<6,MAX($Q$4:Q380)+1,\"\")","v":""}]
[null,null,null,null,null,null,null,null,null,null,null,null,null,null,3,3,{"$f":"IF(COUNTIF($P$4:P381,P382)<6,MAX($Q$4:Q381)+1,\"\")","v":""}]
[null,null,null,null,null,null,null,null,null,null,null,null,null,null,5,4,{"$f":"IF(COUNTIF($P$4:P382,P383)<6,MAX($Q$4:Q382)+1,\"\")","v":""}]
[null,null,null,null,null,null,null,null,null,null,null,null,null,null,5,5,{"$f":"IF(COUNTIF($P$4:P383,P384)<6,MAX($Q$4:Q383)+1,\"\")","v":""}]
[null,null,null,null,null,null,null,null,null,null,null,null,null,null,5,5,{"$f":"IF(COUNTIF($P$4:P384,P385)<6,MAX($Q$4:Q384)+1,\"\")","v":""}]
[null,null,null,null,null,null,null,null,null,null,null,null,null,null,1,2,{"$f":"IF(COUNTIF($P$4:P385,P386)<6,MAX($Q$4:Q385)+1,\"\")","v":""}]
[null,null,null,null,null,null,null,null,null,null,null,null,null,null,4,4,{"$f":"IF(COUNTIF($P$4:P386,P387)<6,MAX($Q$4:Q386)+1,\"\")","v":""}]
[null,null,null,null,null,null,null,null,null,null,null,null,null,null,4,4,{"$f":"IF(COUNTIF($P$4:P387,P388)<6,MAX($Q$4:Q387)+1,\"\")","v":""}]
[null,null,null,null,null,null,null,null,null,null,null,null,null,null,2,1,{"$f":"IF(COUNTIF($P$4:P388,P389)<6,MAX($Q$4:Q388)+1,\"\")","v":""}]
[null,null,null,null,null,null,null,null,null,null,null,null,null,null,{"$f":"RANDBETWEEN(1,5)","v":1},1,{"$f":"IF(COUNTIF($P$4:P389,P390)<6,MAX($Q$4:Q389)+1,\"\")","v":""}]
[null,null,null,null,null,null,null,null,null,null,null,null,null,null,1,4,{"$f":"IF(COUNTIF($P$4:P390,P391)<6,MAX($Q$4:Q390)+1,\"\")","v":""}]
[null,null,null,null,null,null,null,null,null,null,null,null,null,null,1,4,{"$f":"IF(COUNTIF($P$4:P391,P392)<6,MAX($Q$4:Q391)+1,\"\")","v":""}]
[null,null,null,null,null,null,null,null,null,null,null,null,null,null,2,4,{"$f":"IF(COUNTIF($P$4:P392,P393)<6,MAX($Q$4:Q392)+1,\"\")","v":""}]
[null,null,null,null,null,null,null,null,null,null,null,null,null,null,2,3,{"$f":"IF(COUNTIF($P$4:P393,P394)<6,MAX($Q$4:Q393)+1,\"\")","v":""}]
[null,null,null,null,null,null,null,null,null,null,null,null,null,null,1,2,{"$f":"IF(COUNTIF($P$4:P394,P395)<6,MAX($Q$4:Q394)+1,\"\")","v":""}]
[null,null,null,null,null,null,null,null,null,null,null,null,null,null,2,1,{"$f":"IF(COUNTIF($P$4:P395,P396)<6,MAX($Q$4:Q395)+1,\"\")","v":""}]
[null,null,null,null,null,null,null,null,null,null,null,null,null,null,2,3,{"$f":"IF(COUNTIF($P$4:P396,P397)<6,MAX($Q$4:Q396)+1,\"\")","v":""}]
[null,null,null,null,null,null,null,null,null,null,null,null,null,null,5,5,{"$f":"IF(COUNTIF($P$4:P397,P398)<6,MAX($Q$4:Q397)+1,\"\")","v":""}]
[null,null,null,null,null,null,null,null,null,null,null,null,null,null,2,4,{"$f":"IF(COUNTIF($P$4:P398,P399)<6,MAX($Q$4:Q398)+1,\"\")","v":""}]
[null,null,null,null,null,null,null,null,null,null,null,null,null,null,3,5,{"$f":"IF(COUNTIF($P$4:P399,P400)<6,MAX($Q$4:Q399)+1,\"\")","v":""}]
[null,null,null,null,null,null,null,null,null,null,null,null,null,null,3,4,{"$f":"IF(COUNTIF($P$4:P400,P401)<6,MAX($Q$4:Q400)+1,\"\")","v":""}]
[null,null,null,null,null,null,null,null,null,null,null,null,null,null,5,4,{"$f":"IF(COUNTIF($P$4:P401,P402)<6,MAX($Q$4:Q401)+1,\"\")","v":""}]
[null,null,null,null,null,null,null,null,null,null,null,null,null,null,3,5,{"$f":"IF(COUNTIF($P$4:P402,P403)<6,MAX($Q$4:Q402)+1,\"\")","v":""}]
[null,null,null,null,null,null,null,null,null,null,null,null,null,null,2,5,{"$f":"IF(COUNTIF($P$4:P403,P404)<6,MAX($Q$4:Q403)+1,\"\")","v":""}]
[null,null,null,null,null,null,null,null,null,null,null,null,null,null,3,3,{"$f":"IF(COUNTIF($P$4:P404,P405)<6,MAX($Q$4:Q404)+1,\"\")","v":""}]
[null,null,null,null,null,null,null,null,null,null,null,null,null,null,3,4,{"$f":"IF(COUNTIF($P$4:P405,P406)<6,MAX($Q$4:Q405)+1,\"\")","v":""}]
[null,null,null,null,null,null,null,null,null,null,null,null,null,null,3,5,{"$f":"IF(COUNTIF($P$4:P406,P407)<6,MAX($Q$4:Q406)+1,\"\")","v":""}]
[null,null,null,null,null,null,null,null,null,null,null,null,null,null,3,4,{"$f":"IF(COUNTIF($P$4:P407,P408)<6,MAX($Q$4:Q407)+1,\"\")","v":""}]
[null,null,null,null,null,null,null,null,null,null,null,null,null,null,2,2,{"$f":"IF(COUNTIF($P$4:P408,P409)<6,MAX($Q$4:Q408)+1,\"\")","v":""}]
[null,null,null,null,null,null,null,null,null,null,null,null,null,null,1,3,{"$f":"IF(COUNTIF($P$4:P409,P410)<6,MAX($Q$4:Q409)+1,\"\")","v":""}]
[null,null,null,null,null,null,null,null,null,null,null,null,null,null,5,1,{"$f":"IF(COUNTIF($P$4:P410,P411)<6,MAX($Q$4:Q410)+1,\"\")","v":""}]
[null,null,null,null,null,null,null,null,null,null,null,null,null,null,2,5,{"$f":"IF(COUNTIF($P$4:P411,P412)<6,MAX($Q$4:Q411)+1,\"\")","v":""}]
[null,null,null,null,null,null,null,null,null,null,null,null,null,null,3,4,{"$f":"IF(COUNTIF($P$4:P412,P413)<6,MAX($Q$4:Q412)+1,\"\")","v":""}]
[null,null,null,null,null,null,null,null,null,null,null,null,null,null,5,4,{"$f":"IF(COUNTIF($P$4:P413,P414)<6,MAX($Q$4:Q413)+1,\"\")","v":""}]
[null,null,null,null,null,null,null,null,null,null,null,null,null,null,1,1,{"$f":"IF(COUNTIF($P$4:P414,P415)<6,MAX($Q$4:Q414)+1,\"\")","v":""}]
[null,null,null,null,null,null,null,null,null,null,null,null,null,null,4,3,{"$f":"IF(COUNTIF($P$4:P415,P416)<6,MAX($Q$4:Q415)+1,\"\")","v":""}]
[null,null,null,null,null,null,null,null,null,null,null,null,null,null,1,4,{"$f":"IF(COUNTIF($P$4:P416,P417)<6,MAX($Q$4:Q416)+1,\"\")","v":""}]
[null,null,null,null,null,null,null,null,null,null,null,null,null,null,4,5,{"$f":"IF(COUNTIF($P$4:P417,P418)<6,MAX($Q$4:Q417)+1,\"\")","v":""}]
[null,null,null,null,null,null,null,null,null,null,null,null,null,null,4,3,{"$f":"IF(COUNTIF($P$4:P418,P419)<6,MAX($Q$4:Q418)+1,\"\")","v":""}]
[null,null,null,null,null,null,null,null,null,null,null,null,null,null,2,4,{"$f":"IF(COUNTIF($P$4:P419,P420)<6,MAX($Q$4:Q419)+1,\"\")","v":""}]
[null,null,null,null,null,null,null,null,null,null,null,null,null,null,2,4,{"$f":"IF(COUNTIF($P$4:P420,P421)<6,MAX($Q$4:Q420)+1,\"\")","v":""}]
[null,null,null,null,null,null,null,null,null,null,null,null,null,null,1,3,{"$f":"IF(COUNTIF($P$4:P421,P422)<6,MAX($Q$4:Q421)+1,\"\")","v":""}]
[null,null,null,null,null,null,null,null,null,null,null,null,null,null,2,1,{"$f":"IF(COUNTIF($P$4:P422,P423)<6,MAX($Q$4:Q422)+1,\"\")","v":""}]
[null,null,null,null,null,null,null,null,null,null,null,null,null,null,2,2,{"$f":"IF(COUNTIF($P$4:P423,P424)<6,MAX($Q$4:Q423)+1,\"\")","v":""}]
[null,null,null,null,null,null,null,null,null,null,null,null,null,null,1,3,{"$f":"IF(COUNTIF($P$4:P424,P425)<6,MAX($Q$4:Q424)+1,\"\")","v":""}]
[null,null,null,null,null,null,null,null,null,null,null,null,null,null,1,4,{"$f":"IF(COUNTIF($P$4:P425,P426)<6,MAX($Q$4:Q425)+1,\"\")","v":""}]
[null,null,null,null,null,null,null,null,null,null,null,null,null,null,5,3,{"$f":"IF(COUNTIF($P$4:P426,P427)<6,MAX($Q$4:Q426)+1,\"\")","v":""}]
[null,null,null,null,null,null,null,null,null,null,null,null,null,null,4,1,{"$f":"IF(COUNTIF($P$4:P427,P428)<6,MAX($Q$4:Q427)+1,\"\")","v":""}]
[null,null,null,null,null,null,null,null,null,null,null,null,null,null,4,5,{"$f":"IF(COUNTIF($P$4:P428,P429)<6,MAX($Q$4:Q428)+1,\"\")","v":""}]
[null,null,null,null,null,null,null,null,null,null,null,null,null,null,3,5,{"$f":"IF(COUNTIF($P$4:P429,P430)<6,MAX($Q$4:Q429)+1,\"\")","v":""}]
[null,null,null,null,null,null,null,null,null,null,null,null,null,null,1,3,{"$f":"IF(COUNTIF($P$4:P430,P431)<6,MAX($Q$4:Q430)+1,\"\")","v":""}]
[null,null,null,null,null,null,null,null,null,null,null,null,null,null,1,2,{"$f":"IF(COUNTIF($P$4:P431,P432)<6,MAX($Q$4:Q431)+1,\"\")","v":""}]
[null,null,null,null,null,null,null,null,null,null,null,null,null,null,2,1,{"$f":"IF(COUNTIF($P$4:P432,P433)<6,MAX($Q$4:Q432)+1,\"\")","v":""}]
[null,null,null,null,null,null,null,null,null,null,null,null,null,null,1,4,{"$f":"IF(COUNTIF($P$4:P433,P434)<6,MAX($Q$4:Q433)+1,\"\")","v":""}]
[null,null,null,null,null,null,null,null,null,null,null,null,null,null,3,5,{"$f":"IF(COUNTIF($P$4:P434,P435)<6,MAX($Q$4:Q434)+1,\"\")","v":""}]
[null,null,null,null,null,null,null,null,null,null,null,null,null,null,4,3,{"$f":"IF(COUNTIF($P$4:P435,P436)<6,MAX($Q$4:Q435)+1,\"\")","v":""}]
[null,null,null,null,null,null,null,null,null,null,null,null,null,null,2,2,{"$f":"IF(COUNTIF($P$4:P436,P437)<6,MAX($Q$4:Q436)+1,\"\")","v":""}]
[null,null,null,null,null,null,null,null,null,null,null,null,null,null,3,3,{"$f":"IF(COUNTIF($P$4:P437,P438)<6,MAX($Q$4:Q437)+1,\"\")","v":""}]
[null,null,null,null,null,null,null,null,null,null,null,null,null,null,1,4,{"$f":"IF(COUNTIF($P$4:P438,P439)<6,MAX($Q$4:Q438)+1,\"\")","v":""}]
[null,null,null,null,null,null,null,null,null,null,null,null,null,null,1,3,{"$f":"IF(COUNTIF($P$4:P439,P440)<6,MAX($Q$4:Q439)+1,\"\")","v":""}]
[null,null,null,null,null,null,null,null,null,null,null,null,null,null,1,2,{"$f":"IF(COUNTIF($P$4:P440,P441)<6,MAX($Q$4:Q440)+1,\"\")","v":""}]
[null,null,null,null,null,null,null,null,null,null,null,null,null,null,4,5,{"$f":"IF(COUNTIF($P$4:P441,P442)<6,MAX($Q$4:Q441)+1,\"\")","v":""}]
[null,null,null,null,null,null,null,null,null,null,null,null,null,null,1,4,{"$f":"IF(COUNTIF($P$4:P442,P443)<6,MAX($Q$4:Q442)+1,\"\")","v":""}]
[null,null,null,null,null,null,null,null,null,null,null,null,null,null,5,2,{"$f":"IF(COUNTIF($P$4:P443,P444)<6,MAX($Q$4:Q443)+1,\"\")","v":""}]
[null,null,null,null,null,null,null,null,null,null,null,null,null,null,2,1,{"$f":"IF(COUNTIF($P$4:P444,P445)<6,MAX($Q$4:Q444)+1,\"\")","v":""}]
[null,null,null,null,null,null,null,null,null,null,null,null,null,null,4,2,{"$f":"IF(COUNTIF($P$4:P445,P446)<6,MAX($Q$4:Q445)+1,\"\")","v":""}]
[null,null,null,null,null,null,null,null,null,null,null,null,null,null,1,5,{"$f":"IF(COUNTIF($P$4:P446,P447)<6,MAX($Q$4:Q446)+1,\"\")","v":""}]
[null,null,null,null,null,null,null,null,null,null,null,null,null,null,2,3,{"$f":"IF(COUNTIF($P$4:P447,P448)<6,MAX($Q$4:Q447)+1,\"\")","v":""}]
[null,null,null,null,null,null,null,null,null,null,null,null,null,null,1,1,{"$f":"IF(COUNTIF($P$4:P448,P449)<6,MAX($Q$4:Q448)+1,\"\")","v":""}]
[null,null,null,null,null,null,null,null,null,null,null,null,null,null,5,1,{"$f":"IF(COUNTIF($P$4:P449,P450)<6,MAX($Q$4:Q449)+1,\"\")","v":""}]
[null,null,null,null,null,null,null,null,null,null,null,null,null,null,3,4,{"$f":"IF(COUNTIF($P$4:P450,P451)<6,MAX($Q$4:Q450)+1,\"\")","v":""}]
[null,null,null,null,null,null,null,null,null,null,null,null,null,null,4,1,{"$f":"IF(COUNTIF($P$4:P451,P452)<6,MAX($Q$4:Q451)+1,\"\")","v":""}]
[null,null,null,null,null,null,null,null,null,null,null,null,null,null,1,5,{"$f":"IF(COUNTIF($P$4:P452,P453)<6,MAX($Q$4:Q452)+1,\"\")","v":""}]
[null,null,null,null,null,null,null,null,null,null,null,null,null,null,{"$f":"RANDBETWEEN(1,5)","v":1},4,{"$f":"IF(COUNTIF($P$4:P453,P454)<6,MAX($Q$4:Q453)+1,\"\")","v":""}]
[null,null,null,null,null,null,null,null,null,null,null,null,null,null,4,4,{"$f":"IF(COUNTIF($P$4:P454,P455)<6,MAX($Q$4:Q454)+1,\"\")","v":""}]
[null,null,null,null,null,null,null,null,null,null,null,null,null,null,2,1,{"$f":"IF(COUNTIF($P$4:P455,P456)<6,MAX($Q$4:Q455)+1,\"\")","v":""}]
[null,null,null,null,null,null,null,null,null,null,null,null,null,null,5,5,{"$f":"IF(COUNTIF($P$4:P456,P457)<6,MAX($Q$4:Q456)+1,\"\")","v":""}]
[null,null,null,null,null,null,null,null,null,null,null,null,null,null,1,1,{"$f":"IF(COUNTIF($P$4:P457,P458)<6,MAX($Q$4:Q457)+1,\"\")","v":""}]
[null,null,null,null,null,null,null,null,null,null,null,null,null,null,2,2,{"$f":"IF(COUNTIF($P$4:P458,P459)<6,MAX($Q$4:Q458)+1,\"\")","v":""}]
[null,null,null,null,null,null,null,null,null,null,null,null,null,null,3,2,{"$f":"IF(COUNTIF($P$4:P459,P460)<6,MAX($Q$4:Q459)+1,\"\")","v":""}]
[null,null,null,null,null,null,null,null,null,null,null,null,null,null,2,4,{"$f":"IF(COUNTIF($P$4:P460,P461)<6,MAX($Q$4:Q460)+1,\"\")","v":""}]
[null,null,null,null,null,null,null,null,null,null,null,null,null,null,1,3,{"$f":"IF(COUNTIF($P$4:P461,P462)<6,MAX($Q$4:Q461)+1,\"\")","v":""}]
[null,null,null,null,null,null,null,null,null,null,null,null,null,null,4,2,{"$f":"IF(COUNTIF($P$4:P462,P463)<6,MAX($Q$4:Q462)+1,\"\")","v":""}]
[null,null,null,null,null,null,null,null,null,null,null,null,null,null,3,1,{"$f":"IF(COUNTIF($P$4:P463,P464)<6,MAX($Q$4:Q463)+1,\"\")","v":""}]
[null,null,null,null,null,null,null,null,null,null,null,null,null,null,2,2,{"$f":"IF(COUNTIF($P$4:P464,P465)<6,MAX($Q$4:Q464)+1,\"\")","v":""}]
[null,null,null,null,null,null,null,null,null,null,null,null,null,null,3,5,{"$f":"IF(COUNTIF($P$4:P465,P466)<6,MAX($Q$4:Q465)+1,\"\")","v":""}]
[null,null,null,null,null,null,null,null,null,null,null,null,null,null,3,2,{"$f":"IF(COUNTIF($P$4:P466,P467)<6,MAX($Q$4:Q466)+1,\"\")","v":""}]
[null,null,null,null,null,null,null,null,null,null,null,null,null,null,2,3,{"$f":"IF(COUNTIF($P$4:P467,P468)<6,MAX($Q$4:Q467)+1,\"\")","v":""}]
[null,null,null,null,null,null,null,null,null,null,null,null,null,null,4,4,{"$f":"IF(COUNTIF($P$4:P468,P469)<6,MAX($Q$4:Q468)+1,\"\")","v":""}]
[null,null,null,null,null,null,null,null,null,null,null,null,null,null,2,5,{"$f":"IF(COUNTIF($P$4:P469,P470)<6,MAX($Q$4:Q469)+1,\"\")","v":""}]
[null,null,null,null,null,null,null,null,null,null,null,null,null,null,1,4,{"$f":"IF(COUNTIF($P$4:P470,P471)<6,MAX($Q$4:Q470)+1,\"\")","v":""}]
[null,null,null,null,null,null,null,null,null,null,null,null,null,null,4,2,{"$f":"IF(COUNTIF($P$4:P471,P472)<6,MAX($Q$4:Q471)+1,\"\")","v":""}]
[null,null,null,null,null,null,null,null,null,null,null,null,null,null,4,5,{"$f":"IF(COUNTIF($P$4:P472,P473)<6,MAX($Q$4:Q472)+1,\"\")","v":""}]
[null,null,null,null,null,null,null,null,null,null,null,null,null,null,2,4,{"$f":"IF(COUNTIF($P$4:P473,P474)<6,MAX($Q$4:Q473)+1,\"\")","v":""}]
[null,null,null,null,null,null,null,null,null,null,null,null,null,null,4,5,{"$f":"IF(COUNTIF($P$4:P474,P475)<6,MAX($Q$4:Q474)+1,\"\")","v":""}]
[null,null,null,null,null,null,null,null,null,null,null,null,null,null,5,3,{"$f":"IF(COUNTIF($P$4:P475,P476)<6,MAX($Q$4:Q475)+1,\"\")","v":""}]
[null,null,null,null,null,null,null,null,null,null,null,null,null,null,1,1,{"$f":"IF(COUNTIF($P$4:P476,P477)<6,MAX($Q$4:Q476)+1,\"\")","v":""}]
[null,null,null,null,null,null,null,null,null,null,null,null,null,null,4,2,{"$f":"IF(COUNTIF($P$4:P477,P478)<6,MAX($Q$4:Q477)+1,\"\")","v":""}]
[null,null,null,null,null,null,null,null,null,null,null,null,null,null,3,1,{"$f":"IF(COUNTIF($P$4:P478,P479)<6,MAX($Q$4:Q478)+1,\"\")","v":""}]
[null,null,null,null,null,null,null,null,null,null,null,null,null,null,5,1,{"$f":"IF(COUNTIF($P$4:P479,P480)<6,MAX($Q$4:Q479)+1,\"\")","v":""}]
[null,null,null,null,null,null,null,null,null,null,null,null,null,null,1,3,{"$f":"IF(COUNTIF($P$4:P480,P481)<6,MAX($Q$4:Q480)+1,\"\")","v":""}]
[null,null,null,null,null,null,null,null,null,null,null,null,null,null,2,5,{"$f":"IF(COUNTIF($P$4:P481,P482)<6,MAX($Q$4:Q481)+1,\"\")","v":""}]
[null,null,null,null,null,null,null,null,null,null,null,null,null,null,2,4,{"$f":"IF(COUNTIF($P$4:P482,P483)<6,MAX($Q$4:Q482)+1,\"\")","v":""}]
[null,null,null,null,null,null,null,null,null,null,null,null,null,null,5,4,{"$f":"IF(COUNTIF($P$4:P483,P484)<6,MAX($Q$4:Q483)+1,\"\")","v":""}]
[null,null,null,null,null,null,null,null,null,null,null,null,null,null,1,4,{"$f":"IF(COUNTIF($P$4:P484,P485)<6,MAX($Q$4:Q484)+1,\"\")","v":""}]
[null,null,null,null,null,null,null,null,null,null,null,null,null,null,3,3,{"$f":"IF(COUNTIF($P$4:P485,P486)<6,MAX($Q$4:Q485)+1,\"\")","v":""}]
[null,null,null,null,null,null,null,null,null,null,null,null,null,null,5,5,{"$f":"IF(COUNTIF($P$4:P486,P487)<6,MAX($Q$4:Q486)+1,\"\")","v":""}]
[null,null,null,null,null,null,null,null,null,null,null,null,null,null,3,1,{"$f":"IF(COUNTIF($P$4:P487,P488)<6,MAX($Q$4:Q487)+1,\"\")","v":""}]
[null,null,null,null,null,null,null,null,null,null,null,null,null,null,3,5,{"$f":"IF(COUNTIF($P$4:P488,P489)<6,MAX($Q$4:Q488)+1,\"\")","v":""}]
[null,null,null,null,null,null,null,null,null,null,null,null,null,null,1,3,{"$f":"IF(COUNTIF($P$4:P489,P490)<6,MAX($Q$4:Q489)+1,\"\")","v":""}]
[null,null,null,null,null,null,null,null,null,null,null,null,null,null,3,5,{"$f":"IF(COUNTIF($P$4:P490,P491)<6,MAX($Q$4:Q490)+1,\"\")","v":""}]
[null,null,null,null,null,null,null,null,null,null,null,null,null,null,3,4,{"$f":"IF(COUNTIF($P$4:P491,P492)<6,MAX($Q$4:Q491)+1,\"\")","v":""}]
[null,null,null,null,null,null,null,null,null,null,null,null,null,null,5,2,{"$f":"IF(COUNTIF($P$4:P492,P493)<6,MAX($Q$4:Q492)+1,\"\")","v":""}]
[null,null,null,null,null,null,null,null,null,null,null,null,null,null,2,3,{"$f":"IF(COUNTIF($P$4:P493,P494)<6,MAX($Q$4:Q493)+1,\"\")","v":""}]
[null,null,null,null,null,null,null,null,null,null,null,null,null,null,5,5,{"$f":"IF(COUNTIF($P$4:P494,P495)<6,MAX($Q$4:Q494)+1,\"\")","v":""}]
[null,null,null,null,null,null,null,null,null,null,null,null,null,null,5,3,{"$f":"IF(COUNTIF($P$4:P495,P496)<6,MAX($Q$4:Q495)+1,\"\")","v":""}]
[null,null,null,null,null,null,null,null,null,null,null,null,null,null,1,4,{"$f":"IF(COUNTIF($P$4:P496,P497)<6,MAX($Q$4:Q496)+1,\"\")","v":""}]
[null,null,null,null,null,null,null,null,null,null,null,null,null,null,4,4,{"$f":"IF(COUNTIF($P$4:P497,P498)<6,MAX($Q$4:Q497)+1,\"\")","v":""}]
[null,null,null,null,null,null,null,null,null,null,null,null,null,null,5,3,{"$f":"IF(COUNTIF($P$4:P498,P499)<6,MAX($Q$4:Q498)+1,\"\")","v":""}]
[null,null,null,null,null,null,null,null,null,null,null,null,null,null,1,1,{"$f":"IF(COUNTIF($P$4:P499,P500)<6,MAX($Q$4:Q499)+1,\"\")","v":""}]
[null,null,null,null,null,null,null,null,null,null,null,null,null,null,2,3,{"$f":"IF(COUNTIF($P$4:P500,P501)<6,MAX($Q$4:Q500)+1,\"\")","v":""}]
[null,null,null,null,null,null,null,null,null,null,null,null,null,null,5,3,{"$f":"IF(COUNTIF($P$4:P501,P502)<6,MAX($Q$4:Q501)+1,\"\")","v":""}]
[null,null,null,null,null,null,null,null,null,null,null,null,null,null,5,3,{"$f":"IF(COUNTIF($P$4:P502,P503)<6,MAX($Q$4:Q502)+1,\"\")","v":""}]
[null,null,null,null,null,null,null,null,null,null,null,null,null,null,5,4,{"$f":"IF(COUNTIF($P$4:P503,P504)<6,MAX($Q$4:Q503)+1,\"\")","v":""}]
[null,null,null,null,null,null,null,null,null,null,null,null,null,null,3,5,{"$f":"IF(COUNTIF($P$4:P504,P505)<6,MAX($Q$4:Q504)+1,\"\")","v":""}]
[null,null,null,null,null,null,null,null,null,null,null,null,null,null,5,3,{"$f":"IF(COUNTIF($P$4:P505,P506)<6,MAX($Q$4:Q505)+1,\"\")","v":""}]
[null,null,null,null,null,null,null,null,null,null,null,null,null,null,3,2,{"$f":"IF(COUNTIF($P$4:P506,P507)<6,MAX($Q$4:Q506)+1,\"\")","v":""}]
[null,null,null,null,null,null,null,null,null,null,null,null,null,null,5,2,{"$f":"IF(COUNTIF($P$4:P507,P508)<6,MAX($Q$4:Q507)+1,\"\")","v":""}]

{"sheet":"salaries_tries","index":1,"n_rows":31,"n_cols":2,"rows_kept":31,"cut":false,"hidden":false,"merged":[]}
[]
[null,"Anne Audine"]
[null,"Anne Sarbaque"]
[null,"Arlette Hamalibou"]
[null,"Barrack Houda"]
[null,"Bruno Dagin"]
[null,"Camille Honnête"]
[null,"Charline Galls"]
[null,"Claire Jet"]
[null,"Coralie De MontéCarlo"]
[null,"Emilie Gature"]
[null,"Gérard Niomme"]
[null,"Giles Braltar"]
[null,"Hassan Céhef"]
[null,"Jean Bonbeur"]
[null,"Jerry Tomette"]
[null,"John Doeuf"]
[null,"Laura Tatouille"]
[null,"Lionel Sansasse"]
[null,"Lucie Sille"]
[null,"Marie Rouana"]
[null,"Maurice Lile"]
[null,"Mégane Hèresse"]
[null,"Nadège Hénéré"]
[null,"Nikos Thine"]
[null,"Paul Hochon"]
[null,"Philippe Maurice"]
[null,"Raël Douche"]
[null,"Sarah Bernard"]
[null,"Stéphane Noix"]
[null,"Yohan Solo"]